Publisher Label,Publisher URI,"Supplier ID","Supplier","Invoice No.","Amount (£)","Purpose","Transaction Number","Payment Date","Organisational Unit","Cost Centre(T)","Internal Category Number"
"Wolverhampton City Council","http://opendatacommunities.org/id/metropolitan-district-council/wolverhampton","708513","Vodafone Corporate Limited","UKlO/042017/5841","2,560.44","Comms - Mobile Telephones","130189433","27/09/2017","ICTS","Strategic ICTS (ICT Service Budget)","R4507"
"Wolverhampton City Council","http://opendatacommunities.org/id/metropolitan-district-council/wolverhampton","708542","W.V.Howe Limited","224968","98.62","Equipment - Catering","130188861","27/09/2017","Catering","Civic Centre Catering","R4010"
"Wolverhampton City Council","http://opendatacommunities.org/id/metropolitan-district-council/wolverhampton","708542","W.V.Howe Limited","218556","79.04","Equipment - Catering","130187587","13/09/2017","Catering","Education Catering - General Overheads","R4010"
"Wolverhampton City Council","http://opendatacommunities.org/id/metropolitan-district-council/wolverhampton","708542","W.V.Howe Limited","218556","91.70","Equipment - Catering","130187587","13/09/2017","Catering","Education Catering - General Overheads","R4010"
"Wolverhampton City Council","http://opendatacommunities.org/id/metropolitan-district-council/wolverhampton","708542","W.V.Howe Limited","218556","25.80","Equipment - Catering","130187587","13/09/2017","Catering","Education Catering - General Overheads","R4010"
"Wolverhampton City Council","http://opendatacommunities.org/id/metropolitan-district-council/wolverhampton","708542","W.V.Howe Limited","218556","37.40","Equipment - Catering","130187587","13/09/2017","Catering","Education Catering - General Overheads","R4010"
"Wolverhampton City Council","http://opendatacommunities.org/id/metropolitan-district-council/wolverhampton","708542","W.V.Howe Limited","218556","112.80","Equipment - Catering","130187587","13/09/2017","Catering","Education Catering - General Overheads","R4010"
"Wolverhampton City Council","http://opendatacommunities.org/id/metropolitan-district-council/wolverhampton","708542","W.V.Howe Limited","223740","439.81","Equipment - Catering","130187591","13/09/2017","Catering","Education Catering - General Overheads","R4010"
"Wolverhampton City Council","http://opendatacommunities.org/id/metropolitan-district-council/wolverhampton","708542","W.V.Howe Limited","223485","3.41","Equipment - Catering","130186083","08/09/2017","Catering","Education Catering - General Overheads","R4010"
"Wolverhampton City Council","http://opendatacommunities.org/id/metropolitan-district-council/wolverhampton","708542","W.V.Howe Limited","225216","84.38","Equipment - Catering","130189298","27/09/2017","Catering","Education Catering - General Overheads","R4010"
"Wolverhampton City Council","http://opendatacommunities.org/id/metropolitan-district-council/wolverhampton","708542","W.V.Howe Limited","223278","85.36","Equipment - Catering","130184708","15/09/2017","Catering","Education Catering - General Overheads","R4010"
"Wolverhampton City Council","http://opendatacommunities.org/id/metropolitan-district-council/wolverhampton","708542","W.V.Howe Limited","218555","112.00","Equipment - Catering","130187586","13/09/2017","Catering","Education Catering - General Overheads","R4010"
"Wolverhampton City Council","http://opendatacommunities.org/id/metropolitan-district-council/wolverhampton","708542","W.V.Howe Limited","218555","448.00","Equipment - Catering","130187586","13/09/2017","Catering","Education Catering - General Overheads","R4010"
"Wolverhampton City Council","http://opendatacommunities.org/id/metropolitan-district-council/wolverhampton","708542","W.V.Howe Limited","218555","570.90","Equipment - Catering","130187586","13/09/2017","Catering","Education Catering - General Overheads","R4010"
"Wolverhampton City Council","http://opendatacommunities.org/id/metropolitan-district-council/wolverhampton","708542","W.V.Howe Limited","218555","171.20","Equipment - Catering","130187586","13/09/2017","Catering","Education Catering - General Overheads","R4010"
"Wolverhampton City Council","http://opendatacommunities.org/id/metropolitan-district-council/wolverhampton","708542","W.V.Howe Limited","218555","197.40","Equipment - Catering","130187586","13/09/2017","Catering","Education Catering - General Overheads","R4010"
"Wolverhampton City Council","http://opendatacommunities.org/id/metropolitan-district-council/wolverhampton","708542","W.V.Howe Limited","223486","106.40","Equipment - Catering","130186084","06/09/2017","Catering","Education Catering - General Overheads","R4010"
"Wolverhampton City Council","http://opendatacommunities.org/id/metropolitan-district-council/wolverhampton","708542","W.V.Howe Limited","223486","88.80","Equipment - Catering","130186084","06/09/2017","Catering","Education Catering - General Overheads","R4010"
"Wolverhampton City Council","http://opendatacommunities.org/id/metropolitan-district-council/wolverhampton","708542","W.V.Howe Limited","219155","200.00","Equipment - Catering","130187590","13/09/2017","Visitor Economy","Art Gallery Tea Room","R4010"
"Wolverhampton City Council","http://opendatacommunities.org/id/metropolitan-district-council/wolverhampton","708542","W.V.Howe Limited","218558","143.76","Equipment - Catering","130187589","13/09/2017","Catering","Education Catering - General Overheads","R4010"
"Wolverhampton City Council","http://opendatacommunities.org/id/metropolitan-district-council/wolverhampton","708542","W.V.Howe Limited","218554","647.33","Equipment - Catering","130187585","22/09/2017","Catering","Education Catering - General Overheads","R4010"
"Wolverhampton City Council","http://opendatacommunities.org/id/metropolitan-district-council/wolverhampton","708542","W.V.Howe Limited","221381","97.26","Equipment - Catering","130176831","06/09/2017","Catering","Education Catering - General Overheads","R4010"
"Wolverhampton City Council","http://opendatacommunities.org/id/metropolitan-district-council/wolverhampton","708542","W.V.Howe Limited","218557","134.20","Equipment - Catering","130187588","13/09/2017","Catering","Education Catering - General Overheads","R4010"
"Wolverhampton City Council","http://opendatacommunities.org/id/metropolitan-district-council/wolverhampton","708542","W.V.Howe Limited","218557","99.00","Equipment - Catering","130187588","13/09/2017","Catering","Education Catering - General Overheads","R4010"
"Wolverhampton City Council","http://opendatacommunities.org/id/metropolitan-district-council/wolverhampton","708542","W.V.Howe Limited","218553","104.28","Equipment - Catering","130187584","20/09/2017","Catering","Education Catering - General Overheads","R4010"
"Wolverhampton City Council","http://opendatacommunities.org/id/metropolitan-district-council/wolverhampton","708554","Walsall Healthcare NHS Trust","G065975","676.00","TPP - Public Health Contracts","130187592","27/09/2017","Contracts","Sexual Health","R5060"
"Wolverhampton City Council","http://opendatacommunities.org/id/metropolitan-district-council/wolverhampton","708554","Walsall Healthcare NHS Trust","G067407","11,618.00","TPP - Public Health Contracts","130187593","13/09/2017","Contracts","Sexual Health","R5060"
"Wolverhampton City Council","http://opendatacommunities.org/id/metropolitan-district-council/wolverhampton","708564","Warner Bros. Studios Leavesden Limited","2613245","887.40","Education trips, Holidays, Outings & Activities","130188270","13/09/2017","Schools","Oak Meadow Primary School","R4970"
"Wolverhampton City Council","http://opendatacommunities.org/id/metropolitan-district-council/wolverhampton","708564","Warner Bros. Studios Leavesden Limited","2613245","0.10","Education trips, Holidays, Outings & Activities","130188270","13/09/2017","Schools","Oak Meadow Primary School","R4970"
"Wolverhampton City Council","http://opendatacommunities.org/id/metropolitan-district-council/wolverhampton","708581","Wates Construction Limited","104419","394,631.00","Construction and Conversion","130188695","20/09/2017","-","Merridale Court","C1100"
"Wolverhampton City Council","http://opendatacommunities.org/id/metropolitan-district-council/wolverhampton","708581","Wates Construction Limited","104415","513,866.00","Construction and Conversion","130188694","20/09/2017","-","Roof Refurbishment Programme","C1100"
"Wolverhampton City Council","http://opendatacommunities.org/id/metropolitan-district-council/wolverhampton","708581","Wates Construction Limited","104436","64,230.00","Construction and Conversion","130188696","20/09/2017","-","Fire Safety Improvements","C1100"
"Wolverhampton City Council","http://opendatacommunities.org/id/metropolitan-district-council/wolverhampton","708581","Wates Construction Limited","104476","60,696.00","Construction and Conversion","130188862","20/09/2017","-","New Build infill schemes","C1100"
"Wolverhampton City Council","http://opendatacommunities.org/id/metropolitan-district-council/wolverhampton","708588","WBP Visual Solutions Limited","110540","678.00","Services - Professional Fees","130186245","20/09/2017","Visitor Economy","ACE NPO WAG","R4400"
"Wolverhampton City Council","http://opendatacommunities.org/id/metropolitan-district-council/wolverhampton","708588","WBP Visual Solutions Limited","110538","218.00","Marketing \ Non-staff advertising","130187001","13/09/2017","Visitor Economy","Wildlife Photographer Of The Year - NPO ACE WAG","R4317"
"Wolverhampton City Council","http://opendatacommunities.org/id/metropolitan-district-council/wolverhampton","708588","WBP Visual Solutions Limited","110537","402.00","Services - Professional Fees","130185670","13/09/2017","Visitor Economy","Jane & Louise Wilson - NPO ACE WAG","R4400"
"Wolverhampton City Council","http://opendatacommunities.org/id/metropolitan-district-council/wolverhampton","708597","Weatherite Aluminium Solutions Ltd","041467","150.00","R&M - Departmental planned (external)","130183657","01/09/2017","Maintenance Programme","Centralised R&M","R2001"
"Wolverhampton City Council","http://opendatacommunities.org/id/metropolitan-district-council/wolverhampton","708601","Webgibb Welding Limited","C6759","405.00","Services - Professional Fees","130188378","20/09/2017","Visitor Economy","Northicote Farm","R4400"
"Wolverhampton City Council","http://opendatacommunities.org/id/metropolitan-district-council/wolverhampton","708601","Webgibb Welding Limited","C6755","650.00","Equipment - R & M","130183303","13/09/2017","Visitor Economy","Northicote Farm","R4003"
"Wolverhampton City Council","http://opendatacommunities.org/id/metropolitan-district-council/wolverhampton","708601","Webgibb Welding Limited","C6761","137.30","R&M - Departmental planned (external)","130187921","20/09/2017","Maintenance Programme","Centralised R&M","R2001"
"Wolverhampton City Council","http://opendatacommunities.org/id/metropolitan-district-council/wolverhampton","708601","Webgibb Welding Limited","C6760","55.00","Services - Professional Fees","130187920","20/09/2017","Visitor Economy","Parks Events","R4400"
"Wolverhampton City Council","http://opendatacommunities.org/id/metropolitan-district-council/wolverhampton","708649","West Midlands Employers","WOL_005496","200.00","Staff Advertising Costs","130189299","22/09/2017","The Hub","Central Advertising","R1700"
"Wolverhampton City Council","http://opendatacommunities.org/id/metropolitan-district-council/wolverhampton","708650","West Midlands Fire Service","600037335","46,690.00","TPP - Social Care Support Services","130186901","08/09/2017","Independent Living Service","Telecare","R5501"
"Wolverhampton City Council","http://opendatacommunities.org/id/metropolitan-district-council/wolverhampton","708650","West Midlands Fire Service","600037335","-46,690.00","TPP - Social Care Support Services","130186901","08/09/2017","Independent Living Service","Telecare","R5501"
"Wolverhampton City Council","http://opendatacommunities.org/id/metropolitan-district-council/wolverhampton","708650","West Midlands Fire Service","600037335","45,827.95","TPP - Social Care Support Services","130186901","08/09/2017","Independent Living Service","Telecare","R5501"
"Wolverhampton City Council","http://opendatacommunities.org/id/metropolitan-district-council/wolverhampton","708653","West Midlands Police","200445","1,685.12","Grant Payments","130186246","20/09/2017","Community Safety","SWP - Analyst","R4700"
"Wolverhampton City Council","http://opendatacommunities.org/id/metropolitan-district-council/wolverhampton","708653","West Midlands Police","200445","0.01","Grant Payments","130186246","20/09/2017","Community Safety","SWP - Analyst","R4700"
"Wolverhampton City Council","http://opendatacommunities.org/id/metropolitan-district-council/wolverhampton","708653","West Midlands Police","200445","638.15","Grant Payments","130186246","20/09/2017","Community Safety","SWP - Analyst","R4700"
"Wolverhampton City Council","http://opendatacommunities.org/id/metropolitan-district-council/wolverhampton","708653","West Midlands Police","200445","7,019.74","Grant Payments","130186246","20/09/2017","Community Safety","SWP - Analyst","R4700"
"Wolverhampton City Council","http://opendatacommunities.org/id/metropolitan-district-council/wolverhampton","708653","West Midlands Police","200446","9,571.56","Grant Payments","130186247","20/09/2017","Community Safety","SWP - Analyst","R4700"
"Wolverhampton City Council","http://opendatacommunities.org/id/metropolitan-district-council/wolverhampton","708677","WHampton Homes Limited-Property Service","2600021630","75.37","Grants paid out","130186248","20/09/2017","-","Housing General Fund General Schemes - Small Works Assistance (SWA)","C5000"
"Wolverhampton City Council","http://opendatacommunities.org/id/metropolitan-district-council/wolverhampton","708677","WHampton Homes Limited-Property Service","2600021523","27.00","Grants paid out","130185274","13/09/2017","-","Housing General Fund General Schemes - Small Works Assistance (SWA)","C5000"
"Wolverhampton City Council","http://opendatacommunities.org/id/metropolitan-district-council/wolverhampton","708677","WHampton Homes Limited-Property Service","2600021603","75.37","Grants paid out","130185908","13/09/2017","-","Housing General Fund General Schemes - Small Works Assistance (SWA)","C5000"
"Wolverhampton City Council","http://opendatacommunities.org/id/metropolitan-district-council/wolverhampton","708677","WHampton Homes Limited-Property Service","2600021425","75.37","Grants paid out","130184711","06/09/2017","-","Housing General Fund General Schemes - Small Works Assistance (SWA)","C5000"
"Wolverhampton City Council","http://opendatacommunities.org/id/metropolitan-district-council/wolverhampton","708677","WHampton Homes Limited-Property Service","260002164X","75.37","Grants paid out","130186249","20/09/2017","-","Housing General Fund General Schemes - Small Works Assistance (SWA)","C5000"
"Wolverhampton City Council","http://opendatacommunities.org/id/metropolitan-district-council/wolverhampton","708677","WHampton Homes Limited-Property Service","260002156X","75.37","Grants paid out","130185905","13/09/2017","-","Housing General Fund General Schemes - Small Works Assistance (SWA)","C5000"
"Wolverhampton City Council","http://opendatacommunities.org/id/metropolitan-district-council/wolverhampton","708677","WHampton Homes Limited-Property Service","2600021416","847.60","Grants paid out","130184710","06/09/2017","-","Housing General Fund General Schemes - Small Works Assistance (SWA)","C5000"
"Wolverhampton City Council","http://opendatacommunities.org/id/metropolitan-district-council/wolverhampton","708677","WHampton Homes Limited-Property Service","2600021668","113.32","Grants paid out","130186251","20/09/2017","-","Housing General Fund General Schemes - Small Works Assistance (SWA)","C5000"
"Wolverhampton City Council","http://opendatacommunities.org/id/metropolitan-district-council/wolverhampton","708677","WHampton Homes Limited-Property Service","2600021588","75.37","Grants paid out","130185907","13/09/2017","-","Housing General Fund General Schemes - Small Works Assistance (SWA)","C5000"
"Wolverhampton City Council","http://opendatacommunities.org/id/metropolitan-district-council/wolverhampton","708677","WHampton Homes Limited-Property Service","2600021579","75.37","Grants paid out","130185906","13/09/2017","-","Housing General Fund General Schemes - Small Works Assistance (SWA)","C5000"
"Wolverhampton City Council","http://opendatacommunities.org/id/metropolitan-district-council/wolverhampton","708677","WHampton Homes Limited-Property Service","2600021659","75.37","Grants paid out","130186250","20/09/2017","-","Housing General Fund General Schemes - Small Works Assistance (SWA)","C5000"
"Wolverhampton City Council","http://opendatacommunities.org/id/metropolitan-district-council/wolverhampton","708697","Wilcox Psychological Associates Limited","2203","585.00","Services - Professional Fees","130188181","22/09/2017","Child Protection","Head of Service - CINCP","R4400"
"Wolverhampton City Council","http://opendatacommunities.org/id/metropolitan-district-council/wolverhampton","708697","Wilcox Psychological Associates Limited","2765","965.28","Services - Professional Fees","130188190","22/09/2017","Child Protection","Head of Service - CINCP","R4400"
"Wolverhampton City Council","http://opendatacommunities.org/id/metropolitan-district-council/wolverhampton","708697","Wilcox Psychological Associates Limited","2765","-965.28","Services - Professional Fees","130188190","22/09/2017","Child Protection","Head of Service - CINCP","R4400"
"Wolverhampton City Council","http://opendatacommunities.org/id/metropolitan-district-council/wolverhampton","708697","Wilcox Psychological Associates Limited","2765","585.00","Services - Professional Fees","130188190","22/09/2017","Child Protection","Head of Service - CINCP","R4400"
"Wolverhampton City Council","http://opendatacommunities.org/id/metropolitan-district-council/wolverhampton","708697","Wilcox Psychological Associates Limited","2764","1,060.65","Services - Professional Fees","130188189","22/09/2017","Child Protection","Head of Service - CINCP","R4400"
"Wolverhampton City Council","http://opendatacommunities.org/id/metropolitan-district-council/wolverhampton","708697","Wilcox Psychological Associates Limited","2764","-1,060.65","Services - Professional Fees","130188189","22/09/2017","Child Protection","Head of Service - CINCP","R4400"
"Wolverhampton City Council","http://opendatacommunities.org/id/metropolitan-district-council/wolverhampton","708697","Wilcox Psychological Associates Limited","2764","510.00","Services - Professional Fees","130188189","22/09/2017","Child Protection","Head of Service - CINCP","R4400"
"Wolverhampton City Council","http://opendatacommunities.org/id/metropolitan-district-council/wolverhampton","708697","Wilcox Psychological Associates Limited","2764","550.65","Services - Professional Fees","130188189","22/09/2017","Child Protection","Head of Service - CINCP","R4400"
"Wolverhampton City Council","http://opendatacommunities.org/id/metropolitan-district-council/wolverhampton","708697","Wilcox Psychological Associates Limited","2619","204.71","Services - Professional Fees","130188187","22/09/2017","Child Protection","Head of Service - CINCP","R4400"
"Wolverhampton City Council","http://opendatacommunities.org/id/metropolitan-district-council/wolverhampton","708697","Wilcox Psychological Associates Limited","2765","380.28","Services - Professional Fees","130188190","22/09/2017","Child Protection","Head of Service - CINCP","R4400"
"Wolverhampton City Council","http://opendatacommunities.org/id/metropolitan-district-council/wolverhampton","708697","Wilcox Psychological Associates Limited","2259","239.90","Services - Professional Fees","130188183","22/09/2017","Child Protection","Head of Service - CINCP","R4400"
"Wolverhampton City Council","http://opendatacommunities.org/id/metropolitan-district-council/wolverhampton","708697","Wilcox Psychological Associates Limited","2620","124.49","Services - Professional Fees","130188188","22/09/2017","Child Protection","Head of Service - CINCP","R4400"
"Wolverhampton City Council","http://opendatacommunities.org/id/metropolitan-district-council/wolverhampton","708697","Wilcox Psychological Associates Limited","2860","757.05","Services - Professional Fees","130188191","22/09/2017","Child Protection","Head of Service - CINCP","R4400"
"Wolverhampton City Council","http://opendatacommunities.org/id/metropolitan-district-council/wolverhampton","708697","Wilcox Psychological Associates Limited","2860","-757.05","Services - Professional Fees","130188191","22/09/2017","Child Protection","Head of Service - CINCP","R4400"
"Wolverhampton City Council","http://opendatacommunities.org/id/metropolitan-district-council/wolverhampton","708697","Wilcox Psychological Associates Limited","2860","172.05","Services - Professional Fees","130188191","22/09/2017","Child Protection","Head of Service - CINCP","R4400"
"Wolverhampton City Council","http://opendatacommunities.org/id/metropolitan-district-council/wolverhampton","708697","Wilcox Psychological Associates Limited","2860","585.00","Services - Professional Fees","130188191","22/09/2017","Child Protection","Head of Service - CINCP","R4400"
"Wolverhampton City Council","http://opendatacommunities.org/id/metropolitan-district-council/wolverhampton","708697","Wilcox Psychological Associates Limited","3126","819.00","Services - Professional Fees","130188194","22/09/2017","Child Protection","Head of Service - CINCP","R4400"
"Wolverhampton City Council","http://opendatacommunities.org/id/metropolitan-district-council/wolverhampton","708697","Wilcox Psychological Associates Limited","2597","795.00","Services - Professional Fees","130188186","22/09/2017","Child Protection","Head of Service - CINCP","R4400"
"Wolverhampton City Council","http://opendatacommunities.org/id/metropolitan-district-council/wolverhampton","708697","Wilcox Psychological Associates Limited","2596","390.00","Services - Professional Fees","130188185","22/09/2017","Child Protection","Head of Service - CINCP","R4400"
"Wolverhampton City Council","http://opendatacommunities.org/id/metropolitan-district-council/wolverhampton","708697","Wilcox Psychological Associates Limited","2390","780.62","Services - Professional Fees","130188184","22/09/2017","Child Protection","Head of Service - CINCP","R4400"
"Wolverhampton City Council","http://opendatacommunities.org/id/metropolitan-district-council/wolverhampton","708697","Wilcox Psychological Associates Limited","2597","930.00","Services - Professional Fees","130188186","22/09/2017","Child Protection","Head of Service - CINCP","R4400"
"Wolverhampton City Council","http://opendatacommunities.org/id/metropolitan-district-council/wolverhampton","708697","Wilcox Psychological Associates Limited","2597","-930.00","Services - Professional Fees","130188186","22/09/2017","Child Protection","Head of Service - CINCP","R4400"
"Wolverhampton City Council","http://opendatacommunities.org/id/metropolitan-district-council/wolverhampton","708697","Wilcox Psychological Associates Limited","2597","135.00","Services - Professional Fees","130188186","22/09/2017","Child Protection","Head of Service - CINCP","R4400"
"Wolverhampton City Council","http://opendatacommunities.org/id/metropolitan-district-council/wolverhampton","708697","Wilcox Psychological Associates Limited","2248","50.00","Services - Professional Fees","130188182","22/09/2017","Child Protection","Head of Service - CINCP","R4400"
"Wolverhampton City Council","http://opendatacommunities.org/id/metropolitan-district-council/wolverhampton","708697","Wilcox Psychological Associates Limited","2863","876.75","Services - Professional Fees","130188192","22/09/2017","Child Protection","Head of Service - CINCP","R4400"
"Wolverhampton City Council","http://opendatacommunities.org/id/metropolitan-district-council/wolverhampton","708697","Wilcox Psychological Associates Limited","2863","-876.75","Services - Professional Fees","130188192","22/09/2017","Child Protection","Head of Service - CINCP","R4400"
"Wolverhampton City Council","http://opendatacommunities.org/id/metropolitan-district-council/wolverhampton","708697","Wilcox Psychological Associates Limited","2863","450.00","Services - Professional Fees","130188192","22/09/2017","Child Protection","Head of Service - CINCP","R4400"
"Wolverhampton City Council","http://opendatacommunities.org/id/metropolitan-district-council/wolverhampton","708697","Wilcox Psychological Associates Limited","2863","426.75","Services - Professional Fees","130188192","22/09/2017","Child Protection","Head of Service - CINCP","R4400"
"Wolverhampton City Council","http://opendatacommunities.org/id/metropolitan-district-council/wolverhampton","708697","Wilcox Psychological Associates Limited","2920","450.00","Services - Professional Fees","130188193","22/09/2017","Child Protection","Head of Service - CINCP","R4400"
"Wolverhampton City Council","http://opendatacommunities.org/id/metropolitan-district-council/wolverhampton","708701","Wildside Activity Centre","17/2133","24.00","Marketing \ Non-staff advertising","130185597","01/09/2017","Strategic Organisation Development","Global Budgets","R4317"
"Wolverhampton City Council","http://opendatacommunities.org/id/metropolitan-district-council/wolverhampton","708708","William Gough Limited","82686","607.23","R&M - Departmental planned (external)","130185915","20/09/2017","Maintenance Programme","Centralised R&M","R2001"
"Wolverhampton City Council","http://opendatacommunities.org/id/metropolitan-district-council/wolverhampton","708708","William Gough Limited","82374","40.00","R&M - Departmental planned (external)","130178101","08/09/2017","Maintenance Programme","Centralised R&M","R2001"
"Wolverhampton City Council","http://opendatacommunities.org/id/metropolitan-district-council/wolverhampton","708708","William Gough Limited","82490","225.85","R&M - Departmental planned (external)","130181949","08/09/2017","Maintenance Programme","Centralised R&M","R2001"
"Wolverhampton City Council","http://opendatacommunities.org/id/metropolitan-district-council/wolverhampton","708708","William Gough Limited","82541","151.81","R&M - Departmental planned (external)","130182280","08/09/2017","Maintenance Programme","Centralised R&M","R2001"
"Wolverhampton City Council","http://opendatacommunities.org/id/metropolitan-district-council/wolverhampton","708708","William Gough Limited","82566","49.98","R&M - Departmental planned (external)","130183659","08/09/2017","Maintenance Programme","Centralised R&M","R2001"
"Wolverhampton City Council","http://opendatacommunities.org/id/metropolitan-district-council/wolverhampton","708708","William Gough Limited","82540","83.22","R&M - Departmental planned (external)","130182279","08/09/2017","Maintenance Programme","Centralised R&M","R2001"
"Wolverhampton City Council","http://opendatacommunities.org/id/metropolitan-district-council/wolverhampton","708708","William Gough Limited","82689","151.81","R&M - Departmental planned (external)","130185917","20/09/2017","Maintenance Programme","Centralised R&M","R2001"
"Wolverhampton City Council","http://opendatacommunities.org/id/metropolitan-district-council/wolverhampton","708708","William Gough Limited","82449","49.98","R&M - Departmental planned (external)","130180942","20/09/2017","Maintenance Programme","Centralised R&M","R2001"
"Wolverhampton City Council","http://opendatacommunities.org/id/metropolitan-district-council/wolverhampton","708708","William Gough Limited","82715","263.24","R&M - Departmental planned (external)","130186103","20/09/2017","Maintenance Programme","Centralised R&M","R2001"
"Wolverhampton City Council","http://opendatacommunities.org/id/metropolitan-district-council/wolverhampton","708708","William Gough Limited","82703","40.00","R&M - Departmental planned (external)","130186094","20/09/2017","Maintenance Programme","Centralised R&M","R2001"
"Wolverhampton City Council","http://opendatacommunities.org/id/metropolitan-district-council/wolverhampton","708708","William Gough Limited","82698","72.98","R&M - Departmental planned (external)","130186089","20/09/2017","Maintenance Programme","Centralised R&M","R2001"
"Wolverhampton City Council","http://opendatacommunities.org/id/metropolitan-district-council/wolverhampton","708708","William Gough Limited","82719","92.38","R&M - Departmental planned (external)","130186107","20/09/2017","Maintenance Programme","Centralised R&M","R2001"
"Wolverhampton City Council","http://opendatacommunities.org/id/metropolitan-district-council/wolverhampton","708708","William Gough Limited","82728","398.67","R&M - Departmental planned (external)","130186360","27/09/2017","Maintenance Programme","Centralised R&M","R2001"
"Wolverhampton City Council","http://opendatacommunities.org/id/metropolitan-district-council/wolverhampton","708708","William Gough Limited","82727","318.95","R&M - Departmental planned (external)","130186359","27/09/2017","Maintenance Programme","Centralised R&M","R2001"
"Wolverhampton City Council","http://opendatacommunities.org/id/metropolitan-district-council/wolverhampton","708708","William Gough Limited","82561","1,556.13","R&M - Departmental planned (external)","130183909","27/09/2017","Maintenance Programme","Centralised R&M","R2001"
"Wolverhampton City Council","http://opendatacommunities.org/id/metropolitan-district-council/wolverhampton","708708","William Gough Limited","82656","1,177.69","R&M - Departmental planned (external)","130185063","27/09/2017","Maintenance Programme","Centralised R&M","R2001"
"Wolverhampton City Council","http://opendatacommunities.org/id/metropolitan-district-council/wolverhampton","708708","William Gough Limited","82730","68.53","R&M - Departmental planned (external)","130186362","27/09/2017","Maintenance Programme","Centralised R&M","R2001"
"Wolverhampton City Council","http://opendatacommunities.org/id/metropolitan-district-council/wolverhampton","708708","William Gough Limited","82616","40.00","R&M - Departmental planned (external)","130183948","06/09/2017","Maintenance Programme","Centralised R&M","R2001"
"Wolverhampton City Council","http://opendatacommunities.org/id/metropolitan-district-council/wolverhampton","708708","William Gough Limited","82622","663.46","R&M - Departmental planned (external)","130184211","06/09/2017","Maintenance Programme","Centralised R&M","R2001"
"Wolverhampton City Council","http://opendatacommunities.org/id/metropolitan-district-council/wolverhampton","708708","William Gough Limited","82576","149.27","R&M - Departmental planned (external)","130183910","06/09/2017","Maintenance Programme","Centralised R&M","R2001"
"Wolverhampton City Council","http://opendatacommunities.org/id/metropolitan-district-council/wolverhampton","708708","William Gough Limited","82583","268.94","R&M - Departmental planned (external)","130183916","06/09/2017","Maintenance Programme","Centralised R&M","R2001"
"Wolverhampton City Council","http://opendatacommunities.org/id/metropolitan-district-council/wolverhampton","708708","William Gough Limited","82598","1,585.27","R&M - Departmental planned (external)","130183931","06/09/2017","Maintenance Programme","Centralised R&M","R2001"
"Wolverhampton City Council","http://opendatacommunities.org/id/metropolitan-district-council/wolverhampton","708708","William Gough Limited","82630","58.32","R&M - Departmental planned (external)","130184218","06/09/2017","Maintenance Programme","Centralised R&M","R2001"
"Wolverhampton City Council","http://opendatacommunities.org/id/metropolitan-district-council/wolverhampton","708708","William Gough Limited","82631","40.00","R&M - Departmental planned (external)","130184219","06/09/2017","Facilities Management","Magistrates","R2001"
"Wolverhampton City Council","http://opendatacommunities.org/id/metropolitan-district-council/wolverhampton","708708","William Gough Limited","82662","21.28","R&M - Departmental planned (external)","130185068","13/09/2017","Markets","Bilston Market and Licensed Operations","R2001"
"Wolverhampton City Council","http://opendatacommunities.org/id/metropolitan-district-council/wolverhampton","708708","William Gough Limited","82440","1,645.16","R&M - Departmental planned (external)","130182136","13/09/2017","Maintenance Programme","Centralised R&M","R2001"
"Wolverhampton City Council","http://opendatacommunities.org/id/metropolitan-district-council/wolverhampton","708708","William Gough Limited","82602","40.00","R&M - Departmental planned (external)","130183934","06/09/2017","Maintenance Programme","Centralised R&M","R2001"
"Wolverhampton City Council","http://opendatacommunities.org/id/metropolitan-district-council/wolverhampton","708708","William Gough Limited","82605","133.87","R&M - Departmental planned (external)","130183937","06/09/2017","Maintenance Programme","Centralised R&M","R2001"
"Wolverhampton City Council","http://opendatacommunities.org/id/metropolitan-district-council/wolverhampton","708708","William Gough Limited","82682","40.00","R&M - Departmental planned (external)","130185912","29/09/2017","Maintenance Programme","Centralised R&M","R2001"
"Wolverhampton City Council","http://opendatacommunities.org/id/metropolitan-district-council/wolverhampton","708708","William Gough Limited","82582","184.00","R&M - Departmental planned (external)","130183915","06/09/2017","Maintenance Programme","Centralised R&M","R2001"
"Wolverhampton City Council","http://opendatacommunities.org/id/metropolitan-district-council/wolverhampton","708708","William Gough Limited","82597","218.21","R&M - Departmental planned (external)","130183930","06/09/2017","Service Director Adults","Service Director Older People","R2001"
"Wolverhampton City Council","http://opendatacommunities.org/id/metropolitan-district-council/wolverhampton","708708","William Gough Limited","82600","292.28","R&M - Departmental planned (external)","130183932","06/09/2017","Markets","Wolverhampton Indoor and Open Market","R2001"
"Wolverhampton City Council","http://opendatacommunities.org/id/metropolitan-district-council/wolverhampton","708708","William Gough Limited","82624","54.68","R&M - Departmental planned (external)","130184213","29/09/2017","Maintenance Programme","Centralised R&M","R2001"
"Wolverhampton City Council","http://opendatacommunities.org/id/metropolitan-district-council/wolverhampton","708708","William Gough Limited","82674","478.24","R&M - Departmental planned (external)","130185910","29/09/2017","Maintenance Programme","Centralised R&M","R2001"
"Wolverhampton City Council","http://opendatacommunities.org/id/metropolitan-district-council/wolverhampton","708708","William Gough Limited","82636","43.80","R&M - Departmental planned (external)","130184942","13/09/2017","Maintenance Programme","Centralised R&M","R2001"
"Wolverhampton City Council","http://opendatacommunities.org/id/metropolitan-district-council/wolverhampton","708708","William Gough Limited","82470","375.96","R&M - Departmental planned (external)","130181090","13/09/2017","Maintenance Programme","Centralised R&M","R2001"
"Wolverhampton City Council","http://opendatacommunities.org/id/metropolitan-district-council/wolverhampton","708708","William Gough Limited","82649","173.62","R&M - Departmental planned (external)","130184954","13/09/2017","Maintenance Programme","Centralised R&M","R2001"
"Wolverhampton City Council","http://opendatacommunities.org/id/metropolitan-district-council/wolverhampton","708708","William Gough Limited","82665","334.38","R&M - Departmental planned (external)","130185070","13/09/2017","Maintenance Programme","Centralised R&M","R2001"
"Wolverhampton City Council","http://opendatacommunities.org/id/metropolitan-district-council/wolverhampton","708708","William Gough Limited","82669","40.00","R&M - Departmental planned (external)","130185074","13/09/2017","Maintenance Programme","Civic Centre Repairs & Maintenance","R2001"
"Wolverhampton City Council","http://opendatacommunities.org/id/metropolitan-district-council/wolverhampton","708708","William Gough Limited","82666","146.06","R&M - Departmental planned (external)","130185071","13/09/2017","Maintenance Programme","Centralised R&M","R2001"
"Wolverhampton City Council","http://opendatacommunities.org/id/metropolitan-district-council/wolverhampton","708708","William Gough Limited","82642","86.68","R&M - Departmental planned (external)","130184948","13/09/2017","Maintenance Programme","Centralised R&M","R2001"
"Wolverhampton City Council","http://opendatacommunities.org/id/metropolitan-district-council/wolverhampton","708708","William Gough Limited","82640","40.00","R&M - Departmental planned (external)","130184946","13/09/2017","Markets","Bilston Market and Licensed Operations","R2001"
"Wolverhampton City Council","http://opendatacommunities.org/id/metropolitan-district-council/wolverhampton","708708","William Gough Limited","82469","92.04","R&M - Departmental planned (external)","130181089","22/09/2017","Maintenance Programme","Centralised R&M","R2001"
"Wolverhampton City Council","http://opendatacommunities.org/id/metropolitan-district-council/wolverhampton","708708","William Gough Limited","82279","162.82","R&M - Departmental planned (external)","130176843","18/09/2017","Maintenance Programme","Centralised R&M","R2001"
"Wolverhampton City Council","http://opendatacommunities.org/id/metropolitan-district-council/wolverhampton","708708","William Gough Limited","82620","40.00","R&M - Departmental planned (external)","130183952","06/09/2017","Maintenance Programme","Centralised R&M","R2001"
"Wolverhampton City Council","http://opendatacommunities.org/id/metropolitan-district-council/wolverhampton","708708","William Gough Limited","82574","239.21","R&M - Departmental planned (external)","130183662","06/09/2017","Maintenance Programme","Centralised R&M","R2001"
"Wolverhampton City Council","http://opendatacommunities.org/id/metropolitan-district-council/wolverhampton","708708","William Gough Limited","82590","122.67","R&M - Departmental planned (external)","130183923","06/09/2017","Maintenance Programme","Centralised R&M","R2001"
"Wolverhampton City Council","http://opendatacommunities.org/id/metropolitan-district-council/wolverhampton","708708","William Gough Limited","82607","40.00","R&M - Departmental planned (external)","130183939","06/09/2017","Markets","Bilston Market and Licensed Operations","R2001"
"Wolverhampton City Council","http://opendatacommunities.org/id/metropolitan-district-council/wolverhampton","708708","William Gough Limited","82608","263.85","R&M - Departmental planned (external)","130183940","06/09/2017","Markets","Wednesfield Street Market","R2001"
"Wolverhampton City Council","http://opendatacommunities.org/id/metropolitan-district-council/wolverhampton","708708","William Gough Limited","82610","200.51","R&M - Departmental planned (external)","130183942","06/09/2017","Markets","Wolverhampton Indoor and Open Market","R2001"
"Wolverhampton City Council","http://opendatacommunities.org/id/metropolitan-district-council/wolverhampton","708708","William Gough Limited","82591","278.01","R&M - Departmental planned (external)","130183924","06/09/2017","Markets","Wolverhampton Indoor and Open Market","R2001"
"Wolverhampton City Council","http://opendatacommunities.org/id/metropolitan-district-council/wolverhampton","708708","William Gough Limited","82633","146.38","R&M - Departmental planned (external)","130184221","06/09/2017","Maintenance Programme","Centralised R&M","R2001"
"Wolverhampton City Council","http://opendatacommunities.org/id/metropolitan-district-council/wolverhampton","708708","William Gough Limited","82673","125.69","R&M - Departmental planned (external)","130185077","13/09/2017","Maintenance Programme","Centralised R&M","R2001"
"Wolverhampton City Council","http://opendatacommunities.org/id/metropolitan-district-council/wolverhampton","708708","William Gough Limited","82382","458.70","R&M - Departmental planned (external)","130182134","13/09/2017","Maintenance Programme","Centralised R&M","R2001"
"Wolverhampton City Council","http://opendatacommunities.org/id/metropolitan-district-council/wolverhampton","708708","William Gough Limited","82579","156.69","R&M - Departmental planned (external)","130183912","06/09/2017","Facilities Management","i10 Facilities Management","R2001"
"Wolverhampton City Council","http://opendatacommunities.org/id/metropolitan-district-council/wolverhampton","708708","William Gough Limited","82738","44.83","R&M - Departmental planned (external)","130186504","29/09/2017","Bereavement Services","Cemeteries","R2001"
"Wolverhampton City Council","http://opendatacommunities.org/id/metropolitan-district-council/wolverhampton","708708","William Gough Limited","82621","1,354.50","R&M - Departmental planned (external)","130184210","06/09/2017","Maintenance Programme","Centralised R&M","R2001"
"Wolverhampton City Council","http://opendatacommunities.org/id/metropolitan-district-council/wolverhampton","708708","William Gough Limited","82634","40.00","R&M - Departmental planned (external)","130184222","06/09/2017","Maintenance Programme","Centralised R&M","R2001"
"Wolverhampton City Council","http://opendatacommunities.org/id/metropolitan-district-council/wolverhampton","708708","William Gough Limited","82632","55.43","R&M - Departmental planned (external)","130184220","06/09/2017","Maintenance Programme","Centralised R&M","R2001"
"Wolverhampton City Council","http://opendatacommunities.org/id/metropolitan-district-council/wolverhampton","708708","William Gough Limited","82771","1,163.47","R&M - Departmental planned (external)","130186802","29/09/2017","Facilities Management","Hickman Avenue Depot","R2001"
"Wolverhampton City Council","http://opendatacommunities.org/id/metropolitan-district-council/wolverhampton","708708","William Gough Limited","82671","40.00","R&M - Departmental planned (external)","130185075","13/09/2017","Maintenance Programme","Centralised R&M","R2001"
"Wolverhampton City Council","http://opendatacommunities.org/id/metropolitan-district-council/wolverhampton","708708","William Gough Limited","82464","331.21","R&M - Departmental planned (external)","130181084","13/09/2017","Maintenance Programme","Centralised R&M","R2001"
"Wolverhampton City Council","http://opendatacommunities.org/id/metropolitan-district-council/wolverhampton","708708","William Gough Limited","82381","995.23","R&M - Departmental planned (external)","130182133","13/09/2017","Maintenance Programme","Centralised R&M","R2001"
"Wolverhampton City Council","http://opendatacommunities.org/id/metropolitan-district-council/wolverhampton","708708","William Gough Limited","82468","144.23","R&M - Departmental planned (external)","130181088","13/09/2017","Maintenance Programme","Centralised R&M","R2001"
"Wolverhampton City Council","http://opendatacommunities.org/id/metropolitan-district-council/wolverhampton","708708","William Gough Limited","82653","58.97","R&M - Departmental planned (external)","130184955","13/09/2017","Facilities Management","Magistrates","R2001"
"Wolverhampton City Council","http://opendatacommunities.org/id/metropolitan-district-council/wolverhampton","708708","William Gough Limited","82537","58.06","R&M - Departmental planned (external)","130182276","13/09/2017","Maintenance Programme","Centralised R&M","R2001"
"Wolverhampton City Council","http://opendatacommunities.org/id/metropolitan-district-council/wolverhampton","708708","William Gough Limited","82527","40.00","R&M - Departmental planned (external)","130182145","13/09/2017","Maintenance Programme","Centralised R&M","R2001"
"Wolverhampton City Council","http://opendatacommunities.org/id/metropolitan-district-council/wolverhampton","708708","William Gough Limited","82641","40.00","R&M - Departmental planned (external)","130186863","13/09/2017","Maintenance Programme","Centralised R&M","R2001"
"Wolverhampton City Council","http://opendatacommunities.org/id/metropolitan-district-council/wolverhampton","708708","William Gough Limited","82704","61.59","R&M - Departmental planned (external)","130186095","22/09/2017","Maintenance Programme","Centralised R&M","R2001"
"Wolverhampton City Council","http://opendatacommunities.org/id/metropolitan-district-council/wolverhampton","708708","William Gough Limited","82699","83.14","R&M - Departmental planned (external)","130186090","20/09/2017","Maintenance Programme","Centralised R&M","R2001"
"Wolverhampton City Council","http://opendatacommunities.org/id/metropolitan-district-council/wolverhampton","708708","William Gough Limited","82706","42,000.00","Construction and Conversion","130186097","20/09/2017","-","Capital Maintenance - Structural Works","C1100"
"Wolverhampton City Council","http://opendatacommunities.org/id/metropolitan-district-council/wolverhampton","708708","William Gough Limited","82693","2,024.09","R&M - Departmental planned (external)","130186086","20/09/2017","Facilities Management","Management of Vacant Properties","R2001"
"Wolverhampton City Council","http://opendatacommunities.org/id/metropolitan-district-council/wolverhampton","708708","William Gough Limited","82701","42.13","R&M - Departmental planned (external)","130186092","20/09/2017","Maintenance Programme","Centralised R&M","R2001"
"Wolverhampton City Council","http://opendatacommunities.org/id/metropolitan-district-council/wolverhampton","708708","William Gough Limited","82705","69.12","R&M - Departmental planned (external)","130186096","20/09/2017","Maintenance Programme","Centralised R&M","R2001"
"Wolverhampton City Council","http://opendatacommunities.org/id/metropolitan-district-council/wolverhampton","708708","William Gough Limited","82717","40.00","R&M - Departmental planned (external)","130186105","20/09/2017","Maintenance Programme","Centralised R&M","R2001"
"Wolverhampton City Council","http://opendatacommunities.org/id/metropolitan-district-council/wolverhampton","708708","William Gough Limited","82718","357.75","R&M - Departmental planned (external)","130186106","20/09/2017","Maintenance Programme","Civic Centre Repairs & Maintenance","R2001"
"Wolverhampton City Council","http://opendatacommunities.org/id/metropolitan-district-council/wolverhampton","708708","William Gough Limited","82356","121.78","R&M - Departmental planned (external)","130178086","08/09/2017","Maintenance Programme","Centralised R&M","R2001"
"Wolverhampton City Council","http://opendatacommunities.org/id/metropolitan-district-council/wolverhampton","708708","William Gough Limited","82535","58.32","R&M - Departmental planned (external)","130182274","08/09/2017","Maintenance Programme","Centralised R&M","R2001"
"Wolverhampton City Council","http://opendatacommunities.org/id/metropolitan-district-council/wolverhampton","708708","William Gough Limited","82444","47.58","R&M - Departmental planned (external)","130180938","08/09/2017","Maintenance Programme","Centralised R&M","R2001"
"Wolverhampton City Council","http://opendatacommunities.org/id/metropolitan-district-council/wolverhampton","708708","William Gough Limited","82498","40.00","R&M - Departmental planned (external)","130181957","08/09/2017","Maintenance Programme","Centralised R&M","R2001"
"Wolverhampton City Council","http://opendatacommunities.org/id/metropolitan-district-council/wolverhampton","708708","William Gough Limited","82550","128.19","R&M - Departmental planned (external)","130182285","08/09/2017","Maintenance Programme","Centralised R&M","R2001"
"Wolverhampton City Council","http://opendatacommunities.org/id/metropolitan-district-council/wolverhampton","708708","William Gough Limited","82543","25,175.33","R&M - Departmental planned (external)","130182282","01/09/2017","Corporate Asset Management","Centralised Planned Maintenance","R2001"
"Wolverhampton City Council","http://opendatacommunities.org/id/metropolitan-district-council/wolverhampton","708708","William Gough Limited","82754","335.32","R&M - Departmental planned (external)","130186945","27/09/2017","Schools","Pupil Referral Units - Mid Point","R2001"
"Wolverhampton City Council","http://opendatacommunities.org/id/metropolitan-district-council/wolverhampton","708708","William Gough Limited","82755","297.65","R&M - Departmental planned (external)","130186518","27/09/2017","Maintenance Programme","Centralised R&M","R2001"
"Wolverhampton City Council","http://opendatacommunities.org/id/metropolitan-district-council/wolverhampton","708708","William Gough Limited","82770","2,635.67","R&M - Departmental planned (external)","130188195","27/09/2017","Maintenance Programme","Centralised R&M","R2001"
"Wolverhampton City Council","http://opendatacommunities.org/id/metropolitan-district-council/wolverhampton","708708","William Gough Limited","82716","40.00","R&M - Departmental planned (external)","130186104","27/09/2017","Maintenance Programme","Asset Management Team","R2001"
"Wolverhampton City Council","http://opendatacommunities.org/id/metropolitan-district-council/wolverhampton","708708","William Gough Limited","82763","46,000.00","Construction and Conversion","130188865","27/09/2017","-","Capital Maintenance - Structural Works","C1100"
"Wolverhampton City Council","http://opendatacommunities.org/id/metropolitan-district-council/wolverhampton","708708","William Gough Limited","82724","212.64","R&M - Departmental planned (external)","130186358","27/09/2017","Maintenance Programme","Centralised R&M","R2001"
"Wolverhampton City Council","http://opendatacommunities.org/id/metropolitan-district-council/wolverhampton","708708","William Gough Limited","82439","5,415.75","R&M - Departmental planned (external)","130180936","13/09/2017","Maintenance Programme","Centralised R&M","R2001"
"Wolverhampton City Council","http://opendatacommunities.org/id/metropolitan-district-council/wolverhampton","708708","William Gough Limited","82657","834.49","R&M - Departmental planned (external)","130185064","13/09/2017","Maintenance Programme","Centralised R&M","R2001"
"Wolverhampton City Council","http://opendatacommunities.org/id/metropolitan-district-council/wolverhampton","708708","William Gough Limited","82644","61.12","R&M - Departmental planned (external)","130184950","13/09/2017","Facilities Management","Magistrates","R2001"
"Wolverhampton City Council","http://opendatacommunities.org/id/metropolitan-district-council/wolverhampton","708708","William Gough Limited","82645","89.43","R&M - Departmental planned (external)","130184951","13/09/2017","Maintenance Programme","Centralised R&M","R2001"
"Wolverhampton City Council","http://opendatacommunities.org/id/metropolitan-district-council/wolverhampton","708708","William Gough Limited","82658","188.72","R&M - Departmental planned (external)","130185065","13/09/2017","Maintenance Programme","Centralised R&M","R2001"
"Wolverhampton City Council","http://opendatacommunities.org/id/metropolitan-district-council/wolverhampton","708708","William Gough Limited","82663","334.38","R&M - Departmental planned (external)","130185069","13/09/2017","Maintenance Programme","Centralised R&M","R2001"
"Wolverhampton City Council","http://opendatacommunities.org/id/metropolitan-district-council/wolverhampton","708708","William Gough Limited","82534","47.76","R&M - Departmental planned (external)","130182273","13/09/2017","Facilities Management","Magistrates","R2001"
"Wolverhampton City Council","http://opendatacommunities.org/id/metropolitan-district-council/wolverhampton","708708","William Gough Limited","82542","139.98","R&M - Departmental planned (external)","130182281","13/09/2017","Maintenance Programme","Centralised R&M","R2001"
"Wolverhampton City Council","http://opendatacommunities.org/id/metropolitan-district-council/wolverhampton","708708","William Gough Limited","82667","227.24","R&M - Departmental planned (external)","130185072","13/09/2017","Maintenance Programme","Centralised R&M","R2001"
"Wolverhampton City Council","http://opendatacommunities.org/id/metropolitan-district-council/wolverhampton","708708","William Gough Limited","82668","40.00","R&M - Departmental planned (external)","130185073","13/09/2017","Maintenance Programme","Centralised R&M","R2001"
"Wolverhampton City Council","http://opendatacommunities.org/id/metropolitan-district-council/wolverhampton","708708","William Gough Limited","82637","40.00","R&M - Departmental planned (external)","130184943","13/09/2017","Maintenance Programme","Centralised R&M","R2001"
"Wolverhampton City Council","http://opendatacommunities.org/id/metropolitan-district-council/wolverhampton","708708","William Gough Limited","82595","218.74","R&M - Departmental planned (external)","130183928","06/09/2017","Markets","Bilston Market and Licensed Operations","R2001"
"Wolverhampton City Council","http://opendatacommunities.org/id/metropolitan-district-council/wolverhampton","708708","William Gough Limited","82573","292.98","R&M - Departmental planned (external)","130185276","06/09/2017","Maintenance Programme","Civic Centre Repairs & Maintenance","R2001"
"Wolverhampton City Council","http://opendatacommunities.org/id/metropolitan-district-council/wolverhampton","708708","William Gough Limited","82580","70.93","R&M - Departmental planned (external)","130183913","06/09/2017","Maintenance Programme","Centralised R&M","R2001"
"Wolverhampton City Council","http://opendatacommunities.org/id/metropolitan-district-council/wolverhampton","708708","William Gough Limited","82627","40.00","R&M - Departmental planned (external)","130184216","06/09/2017","Maintenance Programme","Centralised R&M","R2001"
"Wolverhampton City Council","http://opendatacommunities.org/id/metropolitan-district-council/wolverhampton","708708","William Gough Limited","82604","27.75","R&M - Departmental planned (external)","130183936","06/09/2017","Markets","Wolverhampton Indoor and Open Market","R2001"
"Wolverhampton City Council","http://opendatacommunities.org/id/metropolitan-district-council/wolverhampton","708708","William Gough Limited","82612","191.62","R&M - Departmental planned (external)","130183944","06/09/2017","Maintenance Programme","Centralised R&M","R2001"
"Wolverhampton City Council","http://opendatacommunities.org/id/metropolitan-district-council/wolverhampton","708708","William Gough Limited","82614","92.04","R&M - Departmental planned (external)","130183946","06/09/2017","Maintenance Programme","Centralised R&M","R2001"
"Wolverhampton City Council","http://opendatacommunities.org/id/metropolitan-district-council/wolverhampton","708708","William Gough Limited","82588","151.81","R&M - Departmental planned (external)","130183921","06/09/2017","Maintenance Programme","Centralised R&M","R2001"
"Wolverhampton City Council","http://opendatacommunities.org/id/metropolitan-district-council/wolverhampton","708708","William Gough Limited","82613","88.46","R&M - Departmental planned (external)","130183945","06/09/2017","Maintenance Programme","Civic Centre Repairs & Maintenance","R2001"
"Wolverhampton City Council","http://opendatacommunities.org/id/metropolitan-district-council/wolverhampton","708708","William Gough Limited","82594","270.39","R&M - Departmental planned (external)","130183927","06/09/2017","Markets","Bilston Market and Licensed Operations","R2001"
"Wolverhampton City Council","http://opendatacommunities.org/id/metropolitan-district-council/wolverhampton","708708","William Gough Limited","82596","666.41","R&M - Departmental planned (external)","130183929","06/09/2017","Service Director Adults","Service Director Older People","R2001"
"Wolverhampton City Council","http://opendatacommunities.org/id/metropolitan-district-council/wolverhampton","708708","William Gough Limited","82638","40.00","R&M - Departmental planned (external)","130184944","29/09/2017","Bereavement Services","Cemeteries","R2001"
"Wolverhampton City Council","http://opendatacommunities.org/id/metropolitan-district-council/wolverhampton","708708","William Gough Limited","82581","310.02","R&M - Departmental planned (external)","130183914","22/09/2017","Maintenance Programme","Centralised R&M","R2001"
"Wolverhampton City Council","http://opendatacommunities.org/id/metropolitan-district-council/wolverhampton","708708","William Gough Limited","81882","105.61","R&M - Departmental planned (external)","130165206","18/09/2017","Maintenance Programme","Centralised R&M","R2001"
"Wolverhampton City Council","http://opendatacommunities.org/id/metropolitan-district-council/wolverhampton","708708","William Gough Limited","82711","246.72","R&M - Departmental planned (external)","130186099","20/09/2017","Maintenance Programme","Centralised R&M","R2001"
"Wolverhampton City Council","http://opendatacommunities.org/id/metropolitan-district-council/wolverhampton","708708","William Gough Limited","82690","75.90","R&M - Departmental planned (external)","130185918","20/09/2017","Maintenance Programme","Centralised R&M","R2001"
"Wolverhampton City Council","http://opendatacommunities.org/id/metropolitan-district-council/wolverhampton","708708","William Gough Limited","82714","451.93","R&M - Departmental planned (external)","130186102","20/09/2017","Corporate Asset Management","Future Space Decant Area","R2001"
"Wolverhampton City Council","http://opendatacommunities.org/id/metropolitan-district-council/wolverhampton","708708","William Gough Limited","82707","3,457.46","Construction and Conversion","130186098","20/09/2017","-","Capital Maintenance - Structural Works","C1100"
"Wolverhampton City Council","http://opendatacommunities.org/id/metropolitan-district-council/wolverhampton","708708","William Gough Limited","82685","430.51","R&M - Departmental planned (external)","130185914","20/09/2017","Markets","Wolverhampton Indoor and Open Market","R2001"
"Wolverhampton City Council","http://opendatacommunities.org/id/metropolitan-district-council/wolverhampton","708708","William Gough Limited","82585","74.72","R&M - Departmental planned (external)","130183918","20/09/2017","Maintenance Programme","Centralised R&M","R2001"
"Wolverhampton City Council","http://opendatacommunities.org/id/metropolitan-district-council/wolverhampton","708708","William Gough Limited","82536","40.00","R&M - Departmental planned (external)","130182275","20/09/2017","Facilities Management","Magistrates","R2001"
"Wolverhampton City Council","http://opendatacommunities.org/id/metropolitan-district-council/wolverhampton","708708","William Gough Limited","82447","267.59","R&M - Departmental planned (external)","130180940","20/09/2017","Bereavement Services","Cemeteries","R2001"
"Wolverhampton City Council","http://opendatacommunities.org/id/metropolitan-district-council/wolverhampton","708708","William Gough Limited","82370","40.00","R&M - Departmental planned (external)","130178097","08/09/2017","Maintenance Programme","Centralised R&M","R2001"
"Wolverhampton City Council","http://opendatacommunities.org/id/metropolitan-district-council/wolverhampton","708708","William Gough Limited","82410","152.63","R&M - Departmental planned (external)","130178999","08/09/2017","Maintenance Programme","Centralised R&M","R2001"
"Wolverhampton City Council","http://opendatacommunities.org/id/metropolitan-district-council/wolverhampton","708708","William Gough Limited","82577","68.48","R&M - Departmental planned (external)","130183911","08/09/2017","Maintenance Programme","Centralised R&M","R2001"
"Wolverhampton City Council","http://opendatacommunities.org/id/metropolitan-district-council/wolverhampton","708708","William Gough Limited","82551","49.98","R&M - Departmental planned (external)","130182286","08/09/2017","Maintenance Programme","Centralised R&M","R2001"
"Wolverhampton City Council","http://opendatacommunities.org/id/metropolitan-district-council/wolverhampton","708708","William Gough Limited","82603","40.00","R&M - Departmental planned (external)","130183935","08/09/2017","Maintenance Programme","Centralised R&M","R2001"
"Wolverhampton City Council","http://opendatacommunities.org/id/metropolitan-district-council/wolverhampton","708708","William Gough Limited","82601","85.56","R&M - Departmental planned (external)","130183933","08/09/2017","Maintenance Programme","Centralised R&M","R2001"
"Wolverhampton City Council","http://opendatacommunities.org/id/metropolitan-district-council/wolverhampton","708708","William Gough Limited","82722","57.74","R&M - Departmental planned (external)","130186357","27/09/2017","Markets","Bilston Market and Licensed Operations","R2001"
"Wolverhampton City Council","http://opendatacommunities.org/id/metropolitan-district-council/wolverhampton","708708","William Gough Limited","82753","468.18","R&M - Departmental planned (external)","130186944","27/09/2017","Maintenance Programme","Centralised R&M","R2001"
"Wolverhampton City Council","http://opendatacommunities.org/id/metropolitan-district-council/wolverhampton","708708","William Gough Limited","82743","46.70","R&M - Departmental planned (external)","130186942","27/09/2017","Facilities Management","Magistrates","R2001"
"Wolverhampton City Council","http://opendatacommunities.org/id/metropolitan-district-council/wolverhampton","708708","William Gough Limited","82729","545.16","R&M - Departmental planned (external)","130186361","27/09/2017","Maintenance Programme","Civic Centre Repairs & Maintenance","R2001"
"Wolverhampton City Council","http://opendatacommunities.org/id/metropolitan-district-council/wolverhampton","708708","William Gough Limited","82549","2,837.48","R&M - Departmental planned (external)","130182284","27/09/2017","Maintenance Programme","Centralised R&M","R2001"
"Wolverhampton City Council","http://opendatacommunities.org/id/metropolitan-district-council/wolverhampton","708708","William Gough Limited","82643","40.00","R&M - Departmental planned (external)","130184949","13/09/2017","Bereavement Services","Cemeteries","R2001"
"Wolverhampton City Council","http://opendatacommunities.org/id/metropolitan-district-council/wolverhampton","708708","William Gough Limited","82655","288.83","R&M - Departmental planned (external)","130185062","13/09/2017","Facilities Management","Magistrates","R2001"
"Wolverhampton City Council","http://opendatacommunities.org/id/metropolitan-district-council/wolverhampton","708708","William Gough Limited","82383","327.67","R&M - Departmental planned (external)","130182135","13/09/2017","Maintenance Programme","Centralised R&M","R2001"
"Wolverhampton City Council","http://opendatacommunities.org/id/metropolitan-district-council/wolverhampton","708708","William Gough Limited","82223","874.50","R&M - Departmental planned (external)","130181234","13/09/2017","Maintenance Programme","Centralised R&M","R2001"
"Wolverhampton City Council","http://opendatacommunities.org/id/metropolitan-district-council/wolverhampton","708708","William Gough Limited","82508","4,564.20","R&M - Departmental planned (external)","130182137","13/09/2017","Corporate Asset Management","Centralised Planned Maintenance","R2001"
"Wolverhampton City Council","http://opendatacommunities.org/id/metropolitan-district-council/wolverhampton","708708","William Gough Limited","82661","141.54","R&M - Departmental planned (external)","130185067","13/09/2017","Maintenance Programme","Centralised R&M","R2001"
"Wolverhampton City Council","http://opendatacommunities.org/id/metropolitan-district-council/wolverhampton","708708","William Gough Limited","82554","40.00","R&M - Departmental planned (external)","130183003","13/09/2017","Bereavement Services","Cemeteries","R2001"
"Wolverhampton City Council","http://opendatacommunities.org/id/metropolitan-district-council/wolverhampton","708708","William Gough Limited","82646","55.43","R&M - Departmental planned (external)","130184952","13/09/2017","Maintenance Programme","Centralised R&M","R2001"
"Wolverhampton City Council","http://opendatacommunities.org/id/metropolitan-district-council/wolverhampton","708708","William Gough Limited","82639","103.06","R&M - Departmental planned (external)","130184945","13/09/2017","Maintenance Programme","Centralised R&M","R2001"
"Wolverhampton City Council","http://opendatacommunities.org/id/metropolitan-district-council/wolverhampton","708708","William Gough Limited","82672","450.26","R&M - Departmental planned (external)","130185076","13/09/2017","Maintenance Programme","Centralised R&M","R2001"
"Wolverhampton City Council","http://opendatacommunities.org/id/metropolitan-district-council/wolverhampton","708708","William Gough Limited","82654","153.33","R&M - Departmental planned (external)","130184956","13/09/2017","Maintenance Programme","Centralised R&M","R2001"
"Wolverhampton City Council","http://opendatacommunities.org/id/metropolitan-district-council/wolverhampton","708708","William Gough Limited","82570","51.90","R&M - Departmental planned (external)","130183661","06/09/2017","Maintenance Programme","Centralised R&M","R2001"
"Wolverhampton City Council","http://opendatacommunities.org/id/metropolitan-district-council/wolverhampton","708708","William Gough Limited","82568","142.02","R&M - Departmental planned (external)","130183660","06/09/2017","Maintenance Programme","Centralised R&M","R2001"
"Wolverhampton City Council","http://opendatacommunities.org/id/metropolitan-district-council/wolverhampton","708708","William Gough Limited","82606","257.92","R&M - Departmental planned (external)","130183938","06/09/2017","Maintenance Programme","Centralised R&M","R2001"
"Wolverhampton City Council","http://opendatacommunities.org/id/metropolitan-district-council/wolverhampton","708708","William Gough Limited","82626","40.00","R&M - Departmental planned (external)","130184215","06/09/2017","Maintenance Programme","Centralised R&M","R2001"
"Wolverhampton City Council","http://opendatacommunities.org/id/metropolitan-district-council/wolverhampton","708708","William Gough Limited","82625","112.05","R&M - Departmental planned (external)","130184214","06/09/2017","Maintenance Programme","Centralised R&M","R2001"
"Wolverhampton City Council","http://opendatacommunities.org/id/metropolitan-district-council/wolverhampton","708708","William Gough Limited","82628","238.93","R&M - Departmental planned (external)","130184217","06/09/2017","Maintenance Programme","Centralised R&M","R2001"
"Wolverhampton City Council","http://opendatacommunities.org/id/metropolitan-district-council/wolverhampton","708708","William Gough Limited","82609","40.00","R&M - Departmental planned (external)","130183941","06/09/2017","Maintenance Programme","Centralised R&M","R2001"
"Wolverhampton City Council","http://opendatacommunities.org/id/metropolitan-district-council/wolverhampton","708708","William Gough Limited","82593","274.51","R&M - Departmental planned (external)","130183926","06/09/2017","Maintenance Programme","Centralised R&M","R2001"
"Wolverhampton City Council","http://opendatacommunities.org/id/metropolitan-district-council/wolverhampton","708708","William Gough Limited","82592","153.88","R&M - Departmental planned (external)","130183925","06/09/2017","Maintenance Programme","Centralised R&M","R2001"
"Wolverhampton City Council","http://opendatacommunities.org/id/metropolitan-district-council/wolverhampton","708708","William Gough Limited","82565","362.14","R&M - Departmental planned (external)","130183658","06/09/2017","Maintenance Programme","Centralised R&M","R2001"
"Wolverhampton City Council","http://opendatacommunities.org/id/metropolitan-district-council/wolverhampton","708708","William Gough Limited","82623","142.09","R&M - Departmental planned (external)","130184212","06/09/2017","Facilities Management","Management of Vacant Properties","R2001"
"Wolverhampton City Council","http://opendatacommunities.org/id/metropolitan-district-council/wolverhampton","708708","William Gough Limited","82713","3,399.52","R&M - Departmental planned (external)","130186101","29/09/2017","Maintenance Programme","Centralised R&M","R2001"
"Wolverhampton City Council","http://opendatacommunities.org/id/metropolitan-district-council/wolverhampton","708708","William Gough Limited","82366","89.66","R&M - Departmental planned (external)","130186085","29/09/2017","Maintenance Programme","Centralised R&M","R2001"
"Wolverhampton City Council","http://opendatacommunities.org/id/metropolitan-district-council/wolverhampton","708708","William Gough Limited","82586","808.77","Construction and Conversion","130183919","06/09/2017","-","Corporate Asset Management","C1100"
"Wolverhampton City Council","http://opendatacommunities.org/id/metropolitan-district-council/wolverhampton","708708","William Gough Limited","82584","195.82","R&M - Departmental planned (external)","130183917","06/09/2017","Maintenance Programme","Centralised R&M","R2001"
"Wolverhampton City Council","http://opendatacommunities.org/id/metropolitan-district-council/wolverhampton","708708","William Gough Limited","82700","716.26","R&M - Departmental planned (external)","130186091","20/09/2017","Maintenance Programme","Centralised R&M","R2001"
"Wolverhampton City Council","http://opendatacommunities.org/id/metropolitan-district-council/wolverhampton","708708","William Gough Limited","82702","61.73","R&M - Departmental planned (external)","130186093","20/09/2017","Maintenance Programme","Centralised R&M","R2001"
"Wolverhampton City Council","http://opendatacommunities.org/id/metropolitan-district-council/wolverhampton","708708","William Gough Limited","82417","46.66","R&M - Departmental planned (external)","130179005","08/09/2017","Maintenance Programme","Centralised R&M","R2001"
"Wolverhampton City Council","http://opendatacommunities.org/id/metropolitan-district-council/wolverhampton","708708","William Gough Limited","82539","176.95","R&M - Departmental planned (external)","130182278","08/09/2017","Maintenance Programme","Centralised R&M","R2001"
"Wolverhampton City Council","http://opendatacommunities.org/id/metropolitan-district-council/wolverhampton","708708","William Gough Limited","82538","94.00","R&M - Departmental planned (external)","130182277","08/09/2017","Maintenance Programme","Centralised R&M","R2001"
"Wolverhampton City Council","http://opendatacommunities.org/id/metropolitan-district-council/wolverhampton","708708","William Gough Limited","82589","40.00","R&M - Departmental planned (external)","130183922","08/09/2017","Maintenance Programme","Centralised R&M","R2001"
"Wolverhampton City Council","http://opendatacommunities.org/id/metropolitan-district-council/wolverhampton","708708","William Gough Limited","82208","50.25","R&M - Departmental planned (external)","130174724","08/09/2017","Maintenance Programme","Centralised R&M","R2001"
"Wolverhampton City Council","http://opendatacommunities.org/id/metropolitan-district-council/wolverhampton","708708","William Gough Limited","82721","77.07","R&M - Departmental planned (external)","130186108","20/09/2017","Maintenance Programme","Centralised R&M","R2001"
"Wolverhampton City Council","http://opendatacommunities.org/id/metropolitan-district-council/wolverhampton","708708","William Gough Limited","82400","40.00","R&M - Departmental planned (external)","130178753","20/09/2017","Maintenance Programme","Centralised R&M","R2001"
"Wolverhampton City Council","http://opendatacommunities.org/id/metropolitan-district-council/wolverhampton","708708","William Gough Limited","82684","324.36","R&M - Departmental planned (external)","130185913","20/09/2017","Maintenance Programme","Civic Centre Repairs & Maintenance","R2001"
"Wolverhampton City Council","http://opendatacommunities.org/id/metropolitan-district-council/wolverhampton","708708","William Gough Limited","82687","662.43","R&M - Departmental planned (external)","130185916","20/09/2017","Maintenance Programme","Centralised R&M","R2001"
"Wolverhampton City Council","http://opendatacommunities.org/id/metropolitan-district-council/wolverhampton","708708","William Gough Limited","82695","22,612.20","Construction and Conversion","130186088","20/09/2017","-","Capital Maintenance - Structural Works","C1100"
"Wolverhampton City Council","http://opendatacommunities.org/id/metropolitan-district-council/wolverhampton","708708","William Gough Limited","82749","50.25","R&M - Departmental planned (external)","130186943","27/09/2017","Maintenance Programme","Centralised R&M","R2001"
"Wolverhampton City Council","http://opendatacommunities.org/id/metropolitan-district-council/wolverhampton","708708","William Gough Limited","82757","732.52","Construction and Conversion","130186946","27/09/2017","-","Corporate Asset Management","C1100"
"Wolverhampton City Council","http://opendatacommunities.org/id/metropolitan-district-council/wolverhampton","708708","William Gough Limited","82739","551.48","R&M - Departmental planned (external)","130186941","27/09/2017","Maintenance Programme","Centralised R&M","R2001"
"Wolverhampton City Council","http://opendatacommunities.org/id/metropolitan-district-council/wolverhampton","708708","William Gough Limited","82762","45,000.00","Construction and Conversion","130188864","27/09/2017","-","Capital Maintenance - Structural Works","C1100"
"Wolverhampton City Council","http://opendatacommunities.org/id/metropolitan-district-council/wolverhampton","708744","Wolters Kluwer (UK) Limited","1101484257","756.97","Subscriptions","130189923","29/09/2017","Audit Services","Health & Safety","R4701"
"Wolverhampton City Council","http://opendatacommunities.org/id/metropolitan-district-council/wolverhampton","708758","West Midlands Pension Fund - Wolverhampton City Council","4600039099","960.00","Services - Professional Fees","130186109","20/09/2017","Looked After Children","RAA - Regional Adoption Agency","R4400"
"Wolverhampton City Council","http://opendatacommunities.org/id/metropolitan-district-council/wolverhampton","708770","Wolverhampton Homes Limited","2600021891","11.82","Grant Payments","130187594","27/09/2017","Early Intervention","EIP Locality 5 � Whitmore Reans","R4700"
"Wolverhampton City Council","http://opendatacommunities.org/id/metropolitan-district-council/wolverhampton","708770","Wolverhampton Homes Limited","2600021381","485,378.68","Construction and Conversion","130184412","06/09/2017","-","External Improvement Programme","C1100"
"Wolverhampton City Council","http://opendatacommunities.org/id/metropolitan-district-council/wolverhampton","708770","Wolverhampton Homes Limited","2600021407","15,515.46","Adaptations","130184712","06/09/2017","Independent Living Service","Independent Living Service","R4411"
"Wolverhampton City Council","http://opendatacommunities.org/id/metropolitan-district-council/wolverhampton","708770","Wolverhampton Homes Limited","My ref: HF9967/ER 54 Wyvern Close","11,652.56","Insurance - General","190375629","22/09/2017","Audit Services","Property Insurances","R4962"
"Wolverhampton City Council","http://opendatacommunities.org/id/metropolitan-district-council/wolverhampton","708770","Wolverhampton Homes Limited","2600021882","203,909.85","Construction and Conversion","130187925","27/09/2017","-","Boiler Replacement Programme","C1100"
"Wolverhampton City Council","http://opendatacommunities.org/id/metropolitan-district-council/wolverhampton","708770","Wolverhampton Homes Limited","WHLTD1059576J","600.00","Grant Payments","190375253","22/09/2017","Housing Revenue Account","Spend to Save Fund","R4700"
"Wolverhampton City Council","http://opendatacommunities.org/id/metropolitan-district-council/wolverhampton","708770","Wolverhampton Homes Limited","WHLTD007044C","600.00","Grant Payments","190373029","15/09/2017","Housing Revenue Account","Spend to Save Fund","R4700"
"Wolverhampton City Council","http://opendatacommunities.org/id/metropolitan-district-council/wolverhampton","708770","Wolverhampton Homes Limited","2600021470","3,954.63","Training Expenses","130185079","06/09/2017","Skills","IMPACT","R1650"
"Wolverhampton City Council","http://opendatacommunities.org/id/metropolitan-district-council/wolverhampton","708770","Wolverhampton Homes Limited","SWU3A - 1059576J","821.97","Section 17","190376075","22/09/2017","Child Protection","CIN/CP Social Work Unit - Area 3","R6403"
"Wolverhampton City Council","http://opendatacommunities.org/id/metropolitan-district-council/wolverhampton","708781","Wolverhampton Science Park Limited/Uow.","45056207","63.99","Comms - Telephone Call charges","130186920","20/09/2017","Headstart","Headstart Phase 3","R4505"
"Wolverhampton City Council","http://opendatacommunities.org/id/metropolitan-district-council/wolverhampton","708781","Wolverhampton Science Park Limited/Uow.","K011246","140.00","Room Hire","130188383","20/09/2017","Headstart","Headstart Phase 3","R2201"
"Wolverhampton City Council","http://opendatacommunities.org/id/metropolitan-district-council/wolverhampton","708781","Wolverhampton Science Park Limited/Uow.","45056347","2,825.00","Rent","130187595","27/09/2017","Headstart","Headstart Phase 3","R2200"
"Wolverhampton City Council","http://opendatacommunities.org/id/metropolitan-district-council/wolverhampton","708781","Wolverhampton Science Park Limited/Uow.","KO11228","110.00","Room Hire","130185920","13/09/2017","Headstart","Headstart Phase 3","R2201"
"Wolverhampton City Council","http://opendatacommunities.org/id/metropolitan-district-council/wolverhampton","708781","Wolverhampton Science Park Limited/Uow.","KO11228","108.00","Catering","130185920","13/09/2017","Headstart","Headstart Phase 3","R4100"
"Wolverhampton City Council","http://opendatacommunities.org/id/metropolitan-district-council/wolverhampton","708790","Wolverhampton Voluntary Sector Cncl","1632","30,000.00","TPP - Social Care Support Services","130186642","06/09/2017","Skills","Wolverhampton Volunteer Bureau","R5501"
"Wolverhampton City Council","http://opendatacommunities.org/id/metropolitan-district-council/wolverhampton","708793","Wolverhampton Waste Services Limited","W49/17","530,914.33","TPP - Other contractors","130186110","06/09/2017","Waste and Recycling Service","Waste Disposal - General","R5099"
"Wolverhampton City Council","http://opendatacommunities.org/id/metropolitan-district-council/wolverhampton","708793","Wolverhampton Waste Services Limited","W51/17","-90,107.00","TPP - Other contractors","130186253","06/09/2017","Waste and Recycling Service","Waste Disposal - General","R5099"
"Wolverhampton City Council","http://opendatacommunities.org/id/metropolitan-district-council/wolverhampton","708793","Wolverhampton Waste Services Limited","W50/17","14,521.07","TPP - Other contractors","130186111","06/09/2017","Waste and Recycling Service","Waste Disposal - General","R5099"
"Wolverhampton City Council","http://opendatacommunities.org/id/metropolitan-district-council/wolverhampton","708801","Wolverhampton Youth Zone","IWYZ187","43.00","Room Hire","130153476","27/09/2017","Community Safety","SWP - Infrastructure","R2201"
"Wolverhampton City Council","http://opendatacommunities.org/id/metropolitan-district-council/wolverhampton","708801","Wolverhampton Youth Zone","WYZ297","57.60","Catering","130184413","27/09/2017","Transformation - Public Health","Transformation","R4100"
"Wolverhampton City Council","http://opendatacommunities.org/id/metropolitan-district-council/wolverhampton","708801","Wolverhampton Youth Zone","WYZ296","150.00","Room Hire","130184713","27/09/2017","Transformation - Public Health","Transformation","R2201"
"Wolverhampton City Council","http://opendatacommunities.org/id/metropolitan-district-council/wolverhampton","708820","Woodstock Farm Boarding Kennels","0945","465.00","Storage","130189442","29/09/2017","Safeguarding","Court of Protection, Funerals and Protection of Property","R4910"
"Wolverhampton City Council","http://opendatacommunities.org/id/metropolitan-district-council/wolverhampton","708820","Woodstock Farm Boarding Kennels","0945","-465.00","Storage","130189442","29/09/2017","Safeguarding","Court of Protection, Funerals and Protection of Property","R4910"
"Wolverhampton City Council","http://opendatacommunities.org/id/metropolitan-district-council/wolverhampton","708820","Woodstock Farm Boarding Kennels","0945","465.00","Storage","130189442","29/09/2017","Safeguarding","Court of Protection, Funerals and Protection of Property","R4910"
"Wolverhampton City Council","http://opendatacommunities.org/id/metropolitan-district-council/wolverhampton","708820","Woodstock Farm Boarding Kennels","0947","190.00","Storage","130189444","29/09/2017","Safeguarding","Court of Protection, Funerals and Protection of Property","R4910"
"Wolverhampton City Council","http://opendatacommunities.org/id/metropolitan-district-council/wolverhampton","708820","Woodstock Farm Boarding Kennels","0947","-190.00","Storage","130189444","29/09/2017","Safeguarding","Court of Protection, Funerals and Protection of Property","R4910"
"Wolverhampton City Council","http://opendatacommunities.org/id/metropolitan-district-council/wolverhampton","708820","Woodstock Farm Boarding Kennels","0947","190.00","Storage","130189444","29/09/2017","Safeguarding","Court of Protection, Funerals and Protection of Property","R4910"
"Wolverhampton City Council","http://opendatacommunities.org/id/metropolitan-district-council/wolverhampton","708820","Woodstock Farm Boarding Kennels","0948","150.00","Storage","130189445","29/09/2017","Safeguarding","Court of Protection, Funerals and Protection of Property","R4910"
"Wolverhampton City Council","http://opendatacommunities.org/id/metropolitan-district-council/wolverhampton","708820","Woodstock Farm Boarding Kennels","0948","-150.00","Storage","130189445","29/09/2017","Safeguarding","Court of Protection, Funerals and Protection of Property","R4910"
"Wolverhampton City Council","http://opendatacommunities.org/id/metropolitan-district-council/wolverhampton","708820","Woodstock Farm Boarding Kennels","0948","150.00","Storage","130189445","29/09/2017","Safeguarding","Court of Protection, Funerals and Protection of Property","R4910"
"Wolverhampton City Council","http://opendatacommunities.org/id/metropolitan-district-council/wolverhampton","708820","Woodstock Farm Boarding Kennels","0946","310.00","Storage","130189443","27/09/2017","Safeguarding","Court of Protection, Funerals and Protection of Property","R4910"
"Wolverhampton City Council","http://opendatacommunities.org/id/metropolitan-district-council/wolverhampton","708820","Woodstock Farm Boarding Kennels","0944","465.00","Storage","130189441","29/09/2017","Safeguarding","Court of Protection, Funerals and Protection of Property","R4910"
"Wolverhampton City Council","http://opendatacommunities.org/id/metropolitan-district-council/wolverhampton","708820","Woodstock Farm Boarding Kennels","0944","-465.00","Storage","130189441","29/09/2017","Safeguarding","Court of Protection, Funerals and Protection of Property","R4910"
"Wolverhampton City Council","http://opendatacommunities.org/id/metropolitan-district-council/wolverhampton","708820","Woodstock Farm Boarding Kennels","0944","465.00","Storage","130189441","29/09/2017","Safeguarding","Court of Protection, Funerals and Protection of Property","R4910"
"Wolverhampton City Council","http://opendatacommunities.org/id/metropolitan-district-council/wolverhampton","708820","Woodstock Farm Boarding Kennels","0949","75.00","Storage","130189446","29/09/2017","Safeguarding","Court of Protection, Funerals and Protection of Property","R4910"
"Wolverhampton City Council","http://opendatacommunities.org/id/metropolitan-district-council/wolverhampton","708820","Woodstock Farm Boarding Kennels","0949","-75.00","Storage","130189446","29/09/2017","Safeguarding","Court of Protection, Funerals and Protection of Property","R4910"
"Wolverhampton City Council","http://opendatacommunities.org/id/metropolitan-district-council/wolverhampton","708820","Woodstock Farm Boarding Kennels","0949","75.00","Storage","130189446","29/09/2017","Safeguarding","Court of Protection, Funerals and Protection of Property","R4910"
"Wolverhampton City Council","http://opendatacommunities.org/id/metropolitan-district-council/wolverhampton","708842","Wrekin Turf Growers","32608","105.00","Materials","130187596","15/09/2017","Environmental Maintenance","Arbor Scheme","R4007"
"Wolverhampton City Council","http://opendatacommunities.org/id/metropolitan-district-council/wolverhampton","708865","XMA Limited","BT77334","7,600.00","Plant, Equipment, Machinery & Computer Hardware","130185080","06/09/2017","-","ICT Desktop Refresh","C3000"
"Wolverhampton City Council","http://opendatacommunities.org/id/metropolitan-district-council/wolverhampton","708865","XMA Limited","BU13003","8.72","Intangible Assets / Computer Software","130185672","13/09/2017","-","ICT Desktop Refresh","C4005"
"Wolverhampton City Council","http://opendatacommunities.org/id/metropolitan-district-council/wolverhampton","708865","XMA Limited","BU12734","37,926.00","Intangible Assets / Computer Software","130185671","13/09/2017","-","ICT General Programme","C4005"
"Wolverhampton City Council","http://opendatacommunities.org/id/metropolitan-district-council/wolverhampton","708865","XMA Limited","BP15998","44,148.00","Intangible Assets / Computer Software","130183397","08/09/2017","-","ICT General Programme","C4005"
"Wolverhampton City Council","http://opendatacommunities.org/id/metropolitan-district-council/wolverhampton","708865","XMA Limited","BU16513","34.88","Intangible Assets / Computer Software","130185673","13/09/2017","-","ICT Desktop Refresh","C4005"
"Wolverhampton City Council","http://opendatacommunities.org/id/metropolitan-district-council/wolverhampton","708865","XMA Limited","BP92272","29,020.15","Intangible Assets / Computer Software","130183398","08/09/2017","-","ICT General Programme","C4005"
"Wolverhampton City Council","http://opendatacommunities.org/id/metropolitan-district-council/wolverhampton","708886","Ymca City Tots","NEF Autumn 2017 INST 1","17,040.60","TPP - Private Nursery Education Funding","190378725","29/09/2017","Early Years","Early Years Universal Entitlement for 3 and 4 Year Olds","R5035"
"Wolverhampton City Council","http://opendatacommunities.org/id/metropolitan-district-council/wolverhampton","708886","Ymca City Tots","TFT Autumn 2017 Inst 1","6,470.35","Grant Payments","190378735","29/09/2017","Early Years","Early Years Entitlement Funding for Disadvantaged 2 Year Olds","R4700"
"Wolverhampton City Council","http://opendatacommunities.org/id/metropolitan-district-council/wolverhampton","708891","Yorkshire Purchasing Organisation","619195308","50.25","Equipment - Purchase","130186536","01/09/2017","Schools","Oxley Primary School","R4000"
"Wolverhampton City Council","http://opendatacommunities.org/id/metropolitan-district-council/wolverhampton","708891","Yorkshire Purchasing Organisation","618925970","31.45","Equipment - Purchase","130186537","01/09/2017","Schools","Oxley Primary School","R4000"
"Wolverhampton City Council","http://opendatacommunities.org/id/metropolitan-district-council/wolverhampton","708891","Yorkshire Purchasing Organisation","619234963","27.04","Equipment - Purchase","130186535","01/09/2017","Schools","Oxley Primary School","R4000"
"Wolverhampton City Council","http://opendatacommunities.org/id/metropolitan-district-council/wolverhampton","708896","Young Ones Nursery","NEF Autumn 2017 INST 1","12,637.80","TPP - Private Nursery Education Funding","190378725","29/09/2017","Early Years","Early Years Universal Entitlement for 3 and 4 Year Olds","R5035"
"Wolverhampton City Council","http://opendatacommunities.org/id/metropolitan-district-council/wolverhampton","708931","Zurich Insurance PLC","Insurance Policy No JHA-122014-9603    2017/2018","8,029.92","Insurance - General","190375633","22/09/2017","Audit Services","Legal Liability","R4962"
"Wolverhampton City Council","http://opendatacommunities.org/id/metropolitan-district-council/wolverhampton","708931","Zurich Insurance PLC","JHA-122018-4623","9,285.34","Insurance - General","190378539","29/09/2017","Audit Services","Insurance Services","R4962"
"Wolverhampton City Council","http://opendatacommunities.org/id/metropolitan-district-council/wolverhampton","708931","Zurich Insurance PLC","Insurance Policy No QLA-02G037-0313-00 - PA & Travel","9,347.56","Insurance - General","190375627","22/09/2017","Audit Services","Personal Accident","R4962"
"Wolverhampton City Council","http://opendatacommunities.org/id/metropolitan-district-council/wolverhampton","708931","Zurich Insurance PLC","Insurance Policy No QLA-02G037-0313-00 - Motor","117,359.09","Insurance - General","190375626","22/09/2017","Audit Services","Motor Vehicles","R4962"
"Wolverhampton City Council","http://opendatacommunities.org/id/metropolitan-district-council/wolverhampton","708931","Zurich Insurance PLC","Insurance Policy No QLA-02G037-0313-00 - Engineering Insurance","5,077.76","Insurance - General","190375628","22/09/2017","Audit Services","Engineering","R4962"
"Wolverhampton City Council","http://opendatacommunities.org/id/metropolitan-district-council/wolverhampton","709154","A And A Automatics Limited","9053","2,860.00","R&M - Departmental planned (external)","130187929","27/09/2017","Facilities Management","Caretakers Community Centre","R2001"
"Wolverhampton City Council","http://opendatacommunities.org/id/metropolitan-district-council/wolverhampton","709231","A C Social Care Consultancy Limited","JOINT INVOICE 28","3,275.00","TPP - Social Care Support Services","130184718","06/09/2017","Safeguarding","Safeguarding Board - Childrens","R5501"
"Wolverhampton City Council","http://opendatacommunities.org/id/metropolitan-district-council/wolverhampton","709231","A C Social Care Consultancy Limited","JOINT INVOICE 28","2,875.00","TPP - Social Care Support Services","130184718","06/09/2017","Safeguarding","Safeguarding Board - Adults","R5501"
"Wolverhampton City Council","http://opendatacommunities.org/id/metropolitan-district-council/wolverhampton","709231","A C Social Care Consultancy Limited","JOINT INVOICE 27","7,000.00","TPP - Social Care Support Services","130184717","13/09/2017","Safeguarding","Safeguarding Board - Childrens","R5501"
"Wolverhampton City Council","http://opendatacommunities.org/id/metropolitan-district-council/wolverhampton","709298","C Hopkins","00036","1,200.00","TPP - Maintenance Contractor - General","190370658","08/09/2017","Transportation","Cycling Schemes - Bikeability","R5720"
"Wolverhampton City Council","http://opendatacommunities.org/id/metropolitan-district-council/wolverhampton","709298","C Hopkins","00036/1","10.00","Services - Professional Fees","190370659","08/09/2017","Transportation","Advisory Road Markings and Disabled Bays","R4400"
"Wolverhampton City Council","http://opendatacommunities.org/id/metropolitan-district-council/wolverhampton","709319","A G Jones Stocktakers","170829","95.00","Services - Professional Fees","130189735","27/09/2017","Visitor Economy","Art Gallery Tea Room","R4400"
"Wolverhampton City Council","http://opendatacommunities.org/id/metropolitan-district-council/wolverhampton","709319","A G Jones Stocktakers","170827","95.00","Services - Professional Fees","130189734","27/09/2017","Visitor Economy","Bantock - Tea Rooms","R4400"
"Wolverhampton City Council","http://opendatacommunities.org/id/metropolitan-district-council/wolverhampton","709440","A Lawson(Dudley School Of Motoring)","307","75.00","Services - Professional Fees","190374302","20/09/2017","Fleet Services","Fleet Management","R4400"
"Wolverhampton City Council","http://opendatacommunities.org/id/metropolitan-district-council/wolverhampton","709561","A O Darby","WHTW0617 - 001","535.50","Services - Professional Fees","130189023","27/09/2017","Visitor Economy","Technical Support - ACE NPO WAG","R4400"
"Wolverhampton City Council","http://opendatacommunities.org/id/metropolitan-district-council/wolverhampton","709561","A O Darby","WHTW0717 - 002","414.12","Services - Professional Fees","130189025","22/09/2017","Visitor Economy","Technical Support - ACE NPO WAG","R4400"
"Wolverhampton City Council","http://opendatacommunities.org/id/metropolitan-district-council/wolverhampton","709561","A O Darby","WHTW0717 - 001","511.65","Services - Professional Fees","130189024","22/09/2017","Visitor Economy","Technical Support - ACE NPO WAG","R4400"
"Wolverhampton City Council","http://opendatacommunities.org/id/metropolitan-district-council/wolverhampton","709671","A&M Ellis Laminating+Print Finishing","101 171","157.00","Printing","130189152","27/09/2017","ICTS","Document Centre - General","R4300"
"Wolverhampton City Council","http://opendatacommunities.org/id/metropolitan-district-council/wolverhampton","709671","A&M Ellis Laminating+Print Finishing","101170","90.00","Printing","130189153","22/09/2017","ICTS","Document Centre - General","R4300"
"Wolverhampton City Council","http://opendatacommunities.org/id/metropolitan-district-council/wolverhampton","709704","A.B.C.- Countdown Cars Limited","3668","295.00","Client Transport","130188385","20/09/2017","Specialist Support","Upper Pendeford Farm Short Breaks Centre","R3042"
"Wolverhampton City Council","http://opendatacommunities.org/id/metropolitan-district-council/wolverhampton","710089","ABC Early Learning & Childcare Cent","TFT Autumn 2017 Inst 1","18,005.69","Grant Payments","190378735","29/09/2017","Early Years","Early Years Entitlement Funding for Disadvantaged 2 Year Olds","R4700"
"Wolverhampton City Council","http://opendatacommunities.org/id/metropolitan-district-council/wolverhampton","710089","ABC Early Learning & Childcare Cent","NEF Autumn 2017 INST 1","31,729.91","TPP - Private Nursery Education Funding","190378725","29/09/2017","Early Years","Early Years Universal Entitlement for 3 and 4 Year Olds","R5035"
"Wolverhampton City Council","http://opendatacommunities.org/id/metropolitan-district-council/wolverhampton","710375","Access Hire Nationwide Limited","66921","45.00","Provisions (Resale)","130189027","20/09/2017","Highways Maintenance","Planned Highways Maintenance","R4102"
"Wolverhampton City Council","http://opendatacommunities.org/id/metropolitan-district-council/wolverhampton","710375","Access Hire Nationwide Limited","66256","1,276.00","Hire of Vehicles","190370493","08/09/2017","Fleet Services","Fleet Management","R3200"
"Wolverhampton City Council","http://opendatacommunities.org/id/metropolitan-district-council/wolverhampton","710375","Access Hire Nationwide Limited","66337","180.00","Provisions (Resale)","130187320","08/09/2017","Highways Maintenance","Planned Highways Maintenance","R4102"
"Wolverhampton City Council","http://opendatacommunities.org/id/metropolitan-district-council/wolverhampton","710375","Access Hire Nationwide Limited","66920","45.00","Provisions (Resale)","130189026","20/09/2017","Highways Maintenance","Planned Highways Maintenance","R4102"
"Wolverhampton City Council","http://opendatacommunities.org/id/metropolitan-district-council/wolverhampton","710375","Access Hire Nationwide Limited","66259","704.00","Provisions (Resale)","130187598","13/09/2017","Highways Maintenance","Planned Highways Maintenance","R4102"
"Wolverhampton City Council","http://opendatacommunities.org/id/metropolitan-district-council/wolverhampton","710375","Access Hire Nationwide Limited","66257","1,298.00","Hire of Vehicles","190370494","08/09/2017","Fleet Services","Fleet Management","R3200"
"Wolverhampton City Council","http://opendatacommunities.org/id/metropolitan-district-council/wolverhampton","710375","Access Hire Nationwide Limited","66338","180.00","Provisions (Resale)","130187321","13/09/2017","Highways Maintenance","Planned Highways Maintenance","R4102"
"Wolverhampton City Council","http://opendatacommunities.org/id/metropolitan-district-council/wolverhampton","710375","Access Hire Nationwide Limited","66254","1,298.00","Hire of Vehicles","190370491","08/09/2017","Fleet Services","Fleet Management","R3200"
"Wolverhampton City Council","http://opendatacommunities.org/id/metropolitan-district-council/wolverhampton","710375","Access Hire Nationwide Limited","66255","1,298.00","Hire of Vehicles","190370492","08/09/2017","Fleet Services","Fleet Management","R3200"
"Wolverhampton City Council","http://opendatacommunities.org/id/metropolitan-district-council/wolverhampton","710375","Access Hire Nationwide Limited","66258","704.00","Provisions (Resale)","130187597","13/09/2017","Highways Maintenance","Planned Highways Maintenance","R4102"
"Wolverhampton City Council","http://opendatacommunities.org/id/metropolitan-district-council/wolverhampton","710375","Access Hire Nationwide Limited","66392","75.00","Provisions (Resale)","130188572","18/09/2017","Highways Maintenance","Planned Highways Maintenance","R4102"
"Wolverhampton City Council","http://opendatacommunities.org/id/metropolitan-district-council/wolverhampton","710562","Sandwell & W Birmingham Hosp NHS Trust","440281 M03 2017/18","229.00","TPP - Public Health Contracts","190369710","06/09/2017","Contracts","Sexual Health","R5060"
"Wolverhampton City Council","http://opendatacommunities.org/id/metropolitan-district-council/wolverhampton","710562","Sandwell & W Birmingham Hosp NHS Trust","440224 March 2017","229.00","TPP - Public Health Contracts","190370647","08/09/2017","Contracts","Sexual Health","R5060"
"Wolverhampton City Council","http://opendatacommunities.org/id/metropolitan-district-council/wolverhampton","710562","Sandwell & W Birmingham Hosp NHS Trust","440183 January 2017","229.00","TPP - Public Health Contracts","190370648","08/09/2017","Contracts","Sexual Health","R5060"
"Wolverhampton City Council","http://opendatacommunities.org/id/metropolitan-district-council/wolverhampton","710562","Sandwell & W Birmingham Hosp NHS Trust","440264 M02 2017/18","229.00","TPP - Public Health Contracts","190369712","06/09/2017","Contracts","Sexual Health","R5060"
"Wolverhampton City Council","http://opendatacommunities.org/id/metropolitan-district-council/wolverhampton","710562","Sandwell & W Birmingham Hosp NHS Trust","440304 July 2017/18","229.00","TPP - Public Health Contracts","190375600","22/09/2017","Contracts","Sexual Health","R5060"
"Wolverhampton City Council","http://opendatacommunities.org/id/metropolitan-district-council/wolverhampton","710562","Sandwell & W Birmingham Hosp NHS Trust","440182 January 2017","1,296.00","TPP - Public Health Contracts","190370646","08/09/2017","Contracts","Sexual Health","R5060"
"Wolverhampton City Council","http://opendatacommunities.org/id/metropolitan-district-council/wolverhampton","710562","Sandwell & W Birmingham Hosp NHS Trust","440263 M02 2017/18","982.00","TPP - Public Health Contracts","190369711","06/09/2017","Contracts","Sexual Health","R5060"
"Wolverhampton City Council","http://opendatacommunities.org/id/metropolitan-district-council/wolverhampton","710562","Sandwell & W Birmingham Hosp NHS Trust","440280 M03 2017/18","585.00","TPP - Public Health Contracts","190369709","06/09/2017","Contracts","Sexual Health","R5060"
"Wolverhampton City Council","http://opendatacommunities.org/id/metropolitan-district-council/wolverhampton","710562","Sandwell & W Birmingham Hosp NHS Trust","440303 July 2017/18","711.50","TPP - Public Health Contracts","190375599","22/09/2017","Contracts","Sexual Health","R5060"
"Wolverhampton City Council","http://opendatacommunities.org/id/metropolitan-district-council/wolverhampton","710570","Memsafe LTD","2433","901.60","Services - Professional Fees","130187930","29/09/2017","Bereavement Services","Cemeteries","R4400"
"Wolverhampton City Council","http://opendatacommunities.org/id/metropolitan-district-council/wolverhampton","710570","Memsafe LTD","2434","901.60","Services - Professional Fees","130187931","29/09/2017","Bereavement Services","Cemeteries","R4400"
"Wolverhampton City Council","http://opendatacommunities.org/id/metropolitan-district-council/wolverhampton","710570","Memsafe LTD","2435","901.60","Services - Professional Fees","130187932","29/09/2017","Bereavement Services","Cemeteries","R4400"
"Wolverhampton City Council","http://opendatacommunities.org/id/metropolitan-district-council/wolverhampton","710573","Western Power Distribution (West Mids) t/a Western Power Distribution","KP00134459","65,829.40","Construction and Conversion","130186644","13/09/2017","-","Decent Homes - Stock Improvements","C1100"
"Wolverhampton City Council","http://opendatacommunities.org/id/metropolitan-district-council/wolverhampton","710573","Western Power Distribution (West Mids) t/a Western Power Distribution","KP00134874","11,295.62","Construction and Conversion","130187934","29/09/2017","-","GF - Disposals Programme (Non-Strategic)","C1100"
"Wolverhampton City Council","http://opendatacommunities.org/id/metropolitan-district-council/wolverhampton","710573","Western Power Distribution (West Mids) t/a Western Power Distribution","KP00134071","614.59","TPP - Maintenance on Other Roads","130185082","01/09/2017","Street Lighting","Street Lighting Maintenance","R5710"
"Wolverhampton City Council","http://opendatacommunities.org/id/metropolitan-district-council/wolverhampton","710573","Western Power Distribution (West Mids) t/a Western Power Distribution","KP00134460","72,794.29","Construction and Conversion","130186645","13/09/2017","-","Decent Homes - Stock Improvements","C1100"
"Wolverhampton City Council","http://opendatacommunities.org/id/metropolitan-district-council/wolverhampton","710600","E H Smith Builders Merchant LTD","LEI75782","1,627.00","Materials","130187323","20/09/2017","Highways Maintenance","Patching","R4007"
"Wolverhampton City Council","http://opendatacommunities.org/id/metropolitan-district-council/wolverhampton","710600","E H Smith Builders Merchant LTD","LEI175495","2,803.00","Materials","130184719","06/09/2017","Highways Maintenance","Patching","R4007"
"Wolverhampton City Council","http://opendatacommunities.org/id/metropolitan-district-council/wolverhampton","710600","E H Smith Builders Merchant LTD","LEI175813","2,205.00","Materials","130186803","27/09/2017","Highways Maintenance","Patching","R4007"
"Wolverhampton City Council","http://opendatacommunities.org/id/metropolitan-district-council/wolverhampton","710600","E H Smith Builders Merchant LTD","LEI175931","2,864.00","Materials","130187599","27/09/2017","Highways Maintenance","Patching","R4007"
"Wolverhampton City Council","http://opendatacommunities.org/id/metropolitan-district-council/wolverhampton","710610","Dr A Sharma","L&A001June17","2,405.00","Services - Professional Fees","130186646","06/09/2017","Bereavement Services","Crematorium","R4400"
"Wolverhampton City Council","http://opendatacommunities.org/id/metropolitan-district-council/wolverhampton","710620","ARCO Central LTD","930544831","45.30","Equipment - Purchase","190375461","22/09/2017","Fleet Services","Fleet Management","R4000"
"Wolverhampton City Council","http://opendatacommunities.org/id/metropolitan-district-council/wolverhampton","710640","Turner & Townsend Project Management LTD","000571885","13,462.99","Construction and Conversion","130186258","15/09/2017","-","Future Spaces","C1100"
"Wolverhampton City Council","http://opendatacommunities.org/id/metropolitan-district-council/wolverhampton","710640","Turner & Townsend Project Management LTD","000571886","1,932.23","Construction and Conversion","130186259","15/09/2017","-","Future Spaces","C1100"
"Wolverhampton City Council","http://opendatacommunities.org/id/metropolitan-district-council/wolverhampton","710664","NonStop Recruitment LTD","138786","1,295.00","Agency Staff","130185084","08/09/2017","Child Protection","CIN/CP Social Work Unit - Area 5","R1100"
"Wolverhampton City Council","http://opendatacommunities.org/id/metropolitan-district-council/wolverhampton","710664","NonStop Recruitment LTD","138257","1,290.00","Agency Staff","130185948","08/09/2017","Child Protection","CIN/CP Social Work Unit - Area 1","R1100"
"Wolverhampton City Council","http://opendatacommunities.org/id/metropolitan-district-council/wolverhampton","710664","NonStop Recruitment LTD","138257","-1,290.00","Agency Staff","130185948","08/09/2017","Child Protection","CIN/CP Social Work Unit - Area 1","R1100"
"Wolverhampton City Council","http://opendatacommunities.org/id/metropolitan-district-council/wolverhampton","710664","NonStop Recruitment LTD","138257","1,312.50","Agency Staff","130185948","08/09/2017","Child Protection","CIN/CP Social Work Unit - Area 1","R1100"
"Wolverhampton City Council","http://opendatacommunities.org/id/metropolitan-district-council/wolverhampton","710664","NonStop Recruitment LTD","134412","13.50","Agency Staff","130165560","08/09/2017","Child Protection","CIN/CP Social Work Unit - Area 1","R1100"
"Wolverhampton City Council","http://opendatacommunities.org/id/metropolitan-district-council/wolverhampton","710664","NonStop Recruitment LTD","133929","13.50","Agency Staff","130163263","08/09/2017","Child Protection","CIN/CP Social Work Unit - Area 1","R1100"
"Wolverhampton City Council","http://opendatacommunities.org/id/metropolitan-district-council/wolverhampton","710664","NonStop Recruitment LTD","136594","-754.00","Agency Staff","130185936","08/09/2017","Child Protection","CIN/CP Social Work Unit - Area 1","R1100"
"Wolverhampton City Council","http://opendatacommunities.org/id/metropolitan-district-council/wolverhampton","710664","NonStop Recruitment LTD","136594","770.00","Agency Staff","130185936","08/09/2017","Child Protection","CIN/CP Social Work Unit - Area 1","R1100"
"Wolverhampton City Council","http://opendatacommunities.org/id/metropolitan-district-council/wolverhampton","710664","NonStop Recruitment LTD","136711","1,044.00","Agency Staff","130185937","08/09/2017","Child Protection","CIN/CP Social Work Unit - Area 1","R1100"
"Wolverhampton City Council","http://opendatacommunities.org/id/metropolitan-district-council/wolverhampton","710664","NonStop Recruitment LTD","136711","-1,044.00","Agency Staff","130185937","08/09/2017","Child Protection","CIN/CP Social Work Unit - Area 1","R1100"
"Wolverhampton City Council","http://opendatacommunities.org/id/metropolitan-district-council/wolverhampton","710664","NonStop Recruitment LTD","136711","1,050.00","Agency Staff","130185937","08/09/2017","Child Protection","CIN/CP Social Work Unit - Area 1","R1100"
"Wolverhampton City Council","http://opendatacommunities.org/id/metropolitan-district-council/wolverhampton","710664","NonStop Recruitment LTD","133927","1,295.00","Agency Staff","130163261","08/09/2017","Child Protection","CIN/CP Social Work Unit - Area 1","R1100"
"Wolverhampton City Council","http://opendatacommunities.org/id/metropolitan-district-council/wolverhampton","710664","NonStop Recruitment LTD","136994","1,276.00","Agency Staff","130185940","08/09/2017","Child Protection","CIN/CP Social Work Unit - Area 1","R1100"
"Wolverhampton City Council","http://opendatacommunities.org/id/metropolitan-district-council/wolverhampton","710664","NonStop Recruitment LTD","136994","-1,276.00","Agency Staff","130185940","08/09/2017","Child Protection","CIN/CP Social Work Unit - Area 1","R1100"
"Wolverhampton City Council","http://opendatacommunities.org/id/metropolitan-district-council/wolverhampton","710664","NonStop Recruitment LTD","136994","1,295.00","Agency Staff","130185940","08/09/2017","Child Protection","CIN/CP Social Work Unit - Area 1","R1100"
"Wolverhampton City Council","http://opendatacommunities.org/id/metropolitan-district-council/wolverhampton","710664","NonStop Recruitment LTD","136594","754.00","Agency Staff","130185936","08/09/2017","Child Protection","CIN/CP Social Work Unit - Area 1","R1100"
"Wolverhampton City Council","http://opendatacommunities.org/id/metropolitan-district-council/wolverhampton","710664","NonStop Recruitment LTD","139019","1,295.00","Agency Staff","130185955","15/09/2017","Child Protection","CIN/CP Social Work Unit - Area 2","R1100"
"Wolverhampton City Council","http://opendatacommunities.org/id/metropolitan-district-council/wolverhampton","710664","NonStop Recruitment LTD","135227","1,050.00","Agency Staff","130183315","06/09/2017","Child Protection","CIN/CP Social Work Unit - Area 2","R1100"
"Wolverhampton City Council","http://opendatacommunities.org/id/metropolitan-district-council/wolverhampton","710664","NonStop Recruitment LTD","134595","1,295.00","Agency Staff","130183312","06/09/2017","Child Protection","CIN/CP Social Work Unit - Area 2","R1100"
"Wolverhampton City Council","http://opendatacommunities.org/id/metropolitan-district-council/wolverhampton","710664","NonStop Recruitment LTD","138619","1,295.00","Agency Staff","130186844","06/09/2017","Child Protection","CIN/CP Social Work Unit - Area 2","R1100"
"Wolverhampton City Council","http://opendatacommunities.org/id/metropolitan-district-council/wolverhampton","710664","NonStop Recruitment LTD","139303","1,196.58","Agency Staff","130187936","27/09/2017","Looked After Children","Adoption and Residence Team & Allowances","R1100"
"Wolverhampton City Council","http://opendatacommunities.org/id/metropolitan-district-council/wolverhampton","710664","NonStop Recruitment LTD","139307","1,196.58","Agency Staff","130187940","27/09/2017","Looked After Children","Adoption and Residence Team & Allowances","R1100"
"Wolverhampton City Council","http://opendatacommunities.org/id/metropolitan-district-council/wolverhampton","710664","NonStop Recruitment LTD","139288","1,295.00","Agency Staff","130187600","27/09/2017","Child Protection","CIN/CP Social Work Unit - Area 1","R1100"
"Wolverhampton City Council","http://opendatacommunities.org/id/metropolitan-district-council/wolverhampton","710664","NonStop Recruitment LTD","138886","102.00","Agency Staff","130185951","13/09/2017","Child Protection","CIN/CP Social Work Unit - Area 1","R1100"
"Wolverhampton City Council","http://opendatacommunities.org/id/metropolitan-district-council/wolverhampton","710664","NonStop Recruitment LTD","138886","-102.00","Agency Staff","130185951","13/09/2017","Child Protection","CIN/CP Social Work Unit - Area 1","R1100"
"Wolverhampton City Council","http://opendatacommunities.org/id/metropolitan-district-council/wolverhampton","710664","NonStop Recruitment LTD","138886","101.43","Agency Staff","130185951","13/09/2017","Child Protection","CIN/CP Social Work Unit - Area 1","R1100"
"Wolverhampton City Council","http://opendatacommunities.org/id/metropolitan-district-council/wolverhampton","710664","NonStop Recruitment LTD","138805","1,295.00","Agency Staff","130185085","08/09/2017","Child Protection","CIN/CP Social Work Unit - Area 2","R1100"
"Wolverhampton City Council","http://opendatacommunities.org/id/metropolitan-district-council/wolverhampton","710664","NonStop Recruitment LTD","135868","986.00","Agency Staff","130185929","08/09/2017","Child Protection","CIN/CP Social Work Unit - Area 1","R1100"
"Wolverhampton City Council","http://opendatacommunities.org/id/metropolitan-district-council/wolverhampton","710664","NonStop Recruitment LTD","135868","-986.00","Agency Staff","130185929","08/09/2017","Child Protection","CIN/CP Social Work Unit - Area 1","R1100"
"Wolverhampton City Council","http://opendatacommunities.org/id/metropolitan-district-council/wolverhampton","710664","NonStop Recruitment LTD","135868","980.00","Agency Staff","130185929","08/09/2017","Child Protection","CIN/CP Social Work Unit - Area 1","R1100"
"Wolverhampton City Council","http://opendatacommunities.org/id/metropolitan-district-council/wolverhampton","710664","NonStop Recruitment LTD","138013","1,312.50","Agency Staff","130182311","08/09/2017","Child Protection","CIN/CP Social Work Unit - Area 1","R1100"
"Wolverhampton City Council","http://opendatacommunities.org/id/metropolitan-district-council/wolverhampton","710664","NonStop Recruitment LTD","137088","1,305.00","Agency Staff","130185941","08/09/2017","Child Protection","CIN/CP Social Work Unit - Area 1","R1100"
"Wolverhampton City Council","http://opendatacommunities.org/id/metropolitan-district-council/wolverhampton","710664","NonStop Recruitment LTD","137088","-1,305.00","Agency Staff","130185941","08/09/2017","Child Protection","CIN/CP Social Work Unit - Area 1","R1100"
"Wolverhampton City Council","http://opendatacommunities.org/id/metropolitan-district-council/wolverhampton","710664","NonStop Recruitment LTD","137088","1,295.00","Agency Staff","130185941","08/09/2017","Child Protection","CIN/CP Social Work Unit - Area 1","R1100"
"Wolverhampton City Council","http://opendatacommunities.org/id/metropolitan-district-council/wolverhampton","710664","NonStop Recruitment LTD","134192","1,295.00","Agency Staff","130164441","08/09/2017","Child Protection","CIN/CP Social Work Unit - Area 1","R1100"
"Wolverhampton City Council","http://opendatacommunities.org/id/metropolitan-district-council/wolverhampton","710664","NonStop Recruitment LTD","134314","13.50","Agency Staff","130166209","08/09/2017","Child Protection","CIN/CP Social Work Unit - Area 1","R1100"
"Wolverhampton City Council","http://opendatacommunities.org/id/metropolitan-district-council/wolverhampton","710664","NonStop Recruitment LTD","135392","522.00","Agency Staff","130185925","08/09/2017","Child Protection","CIN/CP Social Work Unit - Area 1","R1100"
"Wolverhampton City Council","http://opendatacommunities.org/id/metropolitan-district-council/wolverhampton","710664","NonStop Recruitment LTD","135392","-522.00","Agency Staff","130185925","08/09/2017","Child Protection","CIN/CP Social Work Unit - Area 1","R1100"
"Wolverhampton City Council","http://opendatacommunities.org/id/metropolitan-district-council/wolverhampton","710664","NonStop Recruitment LTD","135392","525.00","Agency Staff","130185925","08/09/2017","Child Protection","CIN/CP Social Work Unit - Area 1","R1100"
"Wolverhampton City Council","http://opendatacommunities.org/id/metropolitan-district-council/wolverhampton","710664","NonStop Recruitment LTD","138548","1,320.00","Agency Staff","130185949","08/09/2017","Child Protection","CIN/CP Social Work Unit - Area 1","R1100"
"Wolverhampton City Council","http://opendatacommunities.org/id/metropolitan-district-council/wolverhampton","710664","NonStop Recruitment LTD","138548","-1,320.00","Agency Staff","130185949","08/09/2017","Child Protection","CIN/CP Social Work Unit - Area 1","R1100"
"Wolverhampton City Council","http://opendatacommunities.org/id/metropolitan-district-council/wolverhampton","710664","NonStop Recruitment LTD","138548","1,312.50","Agency Staff","130185949","08/09/2017","Child Protection","CIN/CP Social Work Unit - Area 1","R1100"
"Wolverhampton City Council","http://opendatacommunities.org/id/metropolitan-district-council/wolverhampton","710664","NonStop Recruitment LTD","139040","1,295.00","Agency Staff","130185957","15/09/2017","Child Protection","CIN/CP Social Work Unit - Area 5","R1100"
"Wolverhampton City Council","http://opendatacommunities.org/id/metropolitan-district-council/wolverhampton","710664","NonStop Recruitment LTD","134739","1,295.00","Agency Staff","130183313","06/09/2017","Child Protection","CIN/CP Social Work Unit - Area 2","R1100"
"Wolverhampton City Council","http://opendatacommunities.org/id/metropolitan-district-council/wolverhampton","710664","NonStop Recruitment LTD","134157","1,015.00","Agency Staff","130183309","06/09/2017","Child Protection","CIN/CP Social Work Unit - Area 2","R1100"
"Wolverhampton City Council","http://opendatacommunities.org/id/metropolitan-district-council/wolverhampton","710664","NonStop Recruitment LTD","139319","1,295.00","Agency Staff","130187601","27/09/2017","Child Protection","CIN/CP Social Work Unit - Area 5","R1100"
"Wolverhampton City Council","http://opendatacommunities.org/id/metropolitan-district-council/wolverhampton","710664","NonStop Recruitment LTD","139304","1,196.58","Agency Staff","130187937","27/09/2017","Looked After Children","Adoption and Residence Team & Allowances","R1100"
"Wolverhampton City Council","http://opendatacommunities.org/id/metropolitan-district-council/wolverhampton","710664","NonStop Recruitment LTD","134649","295.00","Agency Staff","130180500","27/09/2017","Child Protection","CIN/CP Social Work Unit - Area 1","R1100"
"Wolverhampton City Council","http://opendatacommunities.org/id/metropolitan-district-council/wolverhampton","710664","NonStop Recruitment LTD","134649","1,000.00","Agency Staff","130180500","27/09/2017","Child Protection","CIN/CP Social Work Unit - Area 1","R1100"
"Wolverhampton City Council","http://opendatacommunities.org/id/metropolitan-district-council/wolverhampton","710664","NonStop Recruitment LTD","135390","787.50","Agency Staff","130183316","06/09/2017","Child Protection","CIN/CP Social Work Unit - Area 2","R1100"
"Wolverhampton City Council","http://opendatacommunities.org/id/metropolitan-district-council/wolverhampton","710664","NonStop Recruitment LTD","134225","1,295.00","Agency Staff","130183311","06/09/2017","Child Protection","CIN/CP Social Work Unit - Area 2","R1100"
"Wolverhampton City Council","http://opendatacommunities.org/id/metropolitan-district-council/wolverhampton","710664","NonStop Recruitment LTD","135926","1,295.00","Agency Staff","130183319","06/09/2017","Child Protection","CIN/CP Social Work Unit - Area 2","R1100"
"Wolverhampton City Council","http://opendatacommunities.org/id/metropolitan-district-council/wolverhampton","710664","NonStop Recruitment LTD","139306","1,196.58","Agency Staff","130187939","27/09/2017","Looked After Children","Adoption and Residence Team & Allowances","R1100"
"Wolverhampton City Council","http://opendatacommunities.org/id/metropolitan-district-council/wolverhampton","710664","NonStop Recruitment LTD","139320","33.30","Agency Staff","130187602","27/09/2017","Child Protection","CIN/CP Social Work Unit - Area 5","R1100"
"Wolverhampton City Council","http://opendatacommunities.org/id/metropolitan-district-council/wolverhampton","710664","NonStop Recruitment LTD","137234","1,073.00","Agency Staff","130185942","27/09/2017","Child Protection","CIN/CP Social Work Unit - Area 1","R1100"
"Wolverhampton City Council","http://opendatacommunities.org/id/metropolitan-district-council/wolverhampton","710664","NonStop Recruitment LTD","137234","-1,073.00","Agency Staff","130185942","27/09/2017","Child Protection","CIN/CP Social Work Unit - Area 1","R1100"
"Wolverhampton City Council","http://opendatacommunities.org/id/metropolitan-district-council/wolverhampton","710664","NonStop Recruitment LTD","137234","1,295.00","Agency Staff","130185942","27/09/2017","Child Protection","CIN/CP Social Work Unit - Area 1","R1100"
"Wolverhampton City Council","http://opendatacommunities.org/id/metropolitan-district-council/wolverhampton","710664","NonStop Recruitment LTD","138887","132.00","Agency Staff","130185952","13/09/2017","Child Protection","CIN/CP Social Work Unit - Area 1","R1100"
"Wolverhampton City Council","http://opendatacommunities.org/id/metropolitan-district-council/wolverhampton","710664","NonStop Recruitment LTD","138887","-132.00","Agency Staff","130185952","13/09/2017","Child Protection","CIN/CP Social Work Unit - Area 1","R1100"
"Wolverhampton City Council","http://opendatacommunities.org/id/metropolitan-district-council/wolverhampton","710664","NonStop Recruitment LTD","138887","129.17","Agency Staff","130185952","13/09/2017","Child Protection","CIN/CP Social Work Unit - Area 1","R1100"
"Wolverhampton City Council","http://opendatacommunities.org/id/metropolitan-district-council/wolverhampton","710664","NonStop Recruitment LTD","135039","1,295.00","Agency Staff","130167986","08/09/2017","Child Protection","CIN/CP Social Work Unit - Area 1","R1100"
"Wolverhampton City Council","http://opendatacommunities.org/id/metropolitan-district-council/wolverhampton","710664","NonStop Recruitment LTD","133926","1,295.00","Agency Staff","130163260","08/09/2017","Child Protection","CIN/CP Social Work Unit - Area 1","R1100"
"Wolverhampton City Council","http://opendatacommunities.org/id/metropolitan-district-council/wolverhampton","710664","NonStop Recruitment LTD","134191","13.50","Agency Staff","130164440","08/09/2017","Child Protection","CIN/CP Social Work Unit - Area 1","R1100"
"Wolverhampton City Council","http://opendatacommunities.org/id/metropolitan-district-council/wolverhampton","710664","NonStop Recruitment LTD","133928","13.50","Agency Staff","130163262","08/09/2017","Child Protection","CIN/CP Social Work Unit - Area 1","R1100"
"Wolverhampton City Council","http://opendatacommunities.org/id/metropolitan-district-council/wolverhampton","710664","NonStop Recruitment LTD","136872","1,305.00","Agency Staff","130185939","08/09/2017","Child Protection","CIN/CP Social Work Unit - Area 1","R1100"
"Wolverhampton City Council","http://opendatacommunities.org/id/metropolitan-district-council/wolverhampton","710664","NonStop Recruitment LTD","136872","-1,305.00","Agency Staff","130185939","08/09/2017","Child Protection","CIN/CP Social Work Unit - Area 1","R1100"
"Wolverhampton City Council","http://opendatacommunities.org/id/metropolitan-district-council/wolverhampton","710664","NonStop Recruitment LTD","136872","1,295.00","Agency Staff","130185939","08/09/2017","Child Protection","CIN/CP Social Work Unit - Area 1","R1100"
"Wolverhampton City Council","http://opendatacommunities.org/id/metropolitan-district-council/wolverhampton","710664","NonStop Recruitment LTD","136347","1,305.00","Agency Staff","130185933","08/09/2017","Child Protection","CIN/CP Social Work Unit - Area 1","R1100"
"Wolverhampton City Council","http://opendatacommunities.org/id/metropolitan-district-council/wolverhampton","710664","NonStop Recruitment LTD","136347","-1,305.00","Agency Staff","130185933","08/09/2017","Child Protection","CIN/CP Social Work Unit - Area 1","R1100"
"Wolverhampton City Council","http://opendatacommunities.org/id/metropolitan-district-council/wolverhampton","710664","NonStop Recruitment LTD","136347","1,312.50","Agency Staff","130185933","08/09/2017","Child Protection","CIN/CP Social Work Unit - Area 1","R1100"
"Wolverhampton City Council","http://opendatacommunities.org/id/metropolitan-district-council/wolverhampton","710664","NonStop Recruitment LTD","137452","1,276.00","Agency Staff","130185945","08/09/2017","Child Protection","CIN/CP Social Work Unit - Area 1","R1100"
"Wolverhampton City Council","http://opendatacommunities.org/id/metropolitan-district-council/wolverhampton","710664","NonStop Recruitment LTD","137452","-1,276.00","Agency Staff","130185945","08/09/2017","Child Protection","CIN/CP Social Work Unit - Area 1","R1100"
"Wolverhampton City Council","http://opendatacommunities.org/id/metropolitan-district-council/wolverhampton","710664","NonStop Recruitment LTD","137452","1,295.00","Agency Staff","130185945","08/09/2017","Child Protection","CIN/CP Social Work Unit - Area 1","R1100"
"Wolverhampton City Council","http://opendatacommunities.org/id/metropolitan-district-council/wolverhampton","710664","NonStop Recruitment LTD","135733","1,131.00","Agency Staff","130185928","08/09/2017","Child Protection","CIN/CP Social Work Unit - Area 1","R1100"
"Wolverhampton City Council","http://opendatacommunities.org/id/metropolitan-district-council/wolverhampton","710664","NonStop Recruitment LTD","135733","-1,131.00","Agency Staff","130185928","08/09/2017","Child Protection","CIN/CP Social Work Unit - Area 1","R1100"
"Wolverhampton City Council","http://opendatacommunities.org/id/metropolitan-district-council/wolverhampton","710664","NonStop Recruitment LTD","135733","1,050.00","Agency Staff","130185928","08/09/2017","Child Protection","CIN/CP Social Work Unit - Area 1","R1100"
"Wolverhampton City Council","http://opendatacommunities.org/id/metropolitan-district-council/wolverhampton","710664","NonStop Recruitment LTD","139043","49.61","Agency Staff","130185960","15/09/2017","Child Protection","CIN/CP Social Work Unit - Area 5","R1100"
"Wolverhampton City Council","http://opendatacommunities.org/id/metropolitan-district-council/wolverhampton","710664","NonStop Recruitment LTD","134871","1,295.00","Agency Staff","130185921","15/09/2017","Child Protection","CIN/CP Social Work Unit - Area 1","R1100"
"Wolverhampton City Council","http://opendatacommunities.org/id/metropolitan-district-council/wolverhampton","710664","NonStop Recruitment LTD","135066","1,295.00","Agency Staff","130183314","06/09/2017","Child Protection","CIN/CP Social Work Unit - Area 2","R1100"
"Wolverhampton City Council","http://opendatacommunities.org/id/metropolitan-district-council/wolverhampton","710664","NonStop Recruitment LTD","134158","1,295.00","Agency Staff","130183310","06/09/2017","Child Protection","CIN/CP Social Work Unit - Area 2","R1100"
"Wolverhampton City Council","http://opendatacommunities.org/id/metropolitan-district-council/wolverhampton","710664","NonStop Recruitment LTD","136795","525.00","Agency Staff","130183322","06/09/2017","Child Protection","CIN/CP Social Work Unit - Area 2","R1100"
"Wolverhampton City Council","http://opendatacommunities.org/id/metropolitan-district-council/wolverhampton","710664","NonStop Recruitment LTD","139311","292.80","Agency Staff","130187944","27/09/2017","Looked After Children","Adoption and Residence Team & Allowances","R1100"
"Wolverhampton City Council","http://opendatacommunities.org/id/metropolitan-district-council/wolverhampton","710664","NonStop Recruitment LTD","135805","13.50","Agency Staff","130171259","13/09/2017","Child Protection","CIN/CP Social Work Unit - Area 1","R1100"
"Wolverhampton City Council","http://opendatacommunities.org/id/metropolitan-district-council/wolverhampton","710664","NonStop Recruitment LTD","139305","1,196.58","Agency Staff","130187938","27/09/2017","Looked After Children","Adoption and Residence Team & Allowances","R1100"
"Wolverhampton City Council","http://opendatacommunities.org/id/metropolitan-district-council/wolverhampton","710664","NonStop Recruitment LTD","136218","1,160.00","Agency Staff","130185932","27/09/2017","Child Protection","CIN/CP Social Work Unit - Area 1","R1100"
"Wolverhampton City Council","http://opendatacommunities.org/id/metropolitan-district-council/wolverhampton","710664","NonStop Recruitment LTD","136218","-1,160.00","Agency Staff","130185932","27/09/2017","Child Protection","CIN/CP Social Work Unit - Area 1","R1100"
"Wolverhampton City Council","http://opendatacommunities.org/id/metropolitan-district-council/wolverhampton","710664","NonStop Recruitment LTD","136218","1,295.00","Agency Staff","130185932","27/09/2017","Child Protection","CIN/CP Social Work Unit - Area 1","R1100"
"Wolverhampton City Council","http://opendatacommunities.org/id/metropolitan-district-council/wolverhampton","710664","NonStop Recruitment LTD","134414","1,295.00","Agency Staff","130165562","08/09/2017","Child Protection","CIN/CP Social Work Unit - Area 1","R1100"
"Wolverhampton City Council","http://opendatacommunities.org/id/metropolitan-district-council/wolverhampton","710664","NonStop Recruitment LTD","137451","1,102.00","Agency Staff","130185944","08/09/2017","Child Protection","CIN/CP Social Work Unit - Area 1","R1100"
"Wolverhampton City Council","http://opendatacommunities.org/id/metropolitan-district-council/wolverhampton","710664","NonStop Recruitment LTD","136348","522.00","Agency Staff","130185934","08/09/2017","Child Protection","CIN/CP Social Work Unit - Area 1","R1100"
"Wolverhampton City Council","http://opendatacommunities.org/id/metropolitan-district-council/wolverhampton","710664","NonStop Recruitment LTD","136348","-522.00","Agency Staff","130185934","08/09/2017","Child Protection","CIN/CP Social Work Unit - Area 1","R1100"
"Wolverhampton City Council","http://opendatacommunities.org/id/metropolitan-district-council/wolverhampton","710664","NonStop Recruitment LTD","136348","525.00","Agency Staff","130185934","08/09/2017","Child Protection","CIN/CP Social Work Unit - Area 1","R1100"
"Wolverhampton City Council","http://opendatacommunities.org/id/metropolitan-district-council/wolverhampton","710664","NonStop Recruitment LTD","135518","1,131.00","Agency Staff","130185927","08/09/2017","Child Protection","CIN/CP Social Work Unit - Area 1","R1100"
"Wolverhampton City Council","http://opendatacommunities.org/id/metropolitan-district-council/wolverhampton","710664","NonStop Recruitment LTD","135518","-1,131.00","Agency Staff","130185927","08/09/2017","Child Protection","CIN/CP Social Work Unit - Area 1","R1100"
"Wolverhampton City Council","http://opendatacommunities.org/id/metropolitan-district-council/wolverhampton","710664","NonStop Recruitment LTD","135518","1,295.00","Agency Staff","130185927","08/09/2017","Child Protection","CIN/CP Social Work Unit - Area 1","R1100"
"Wolverhampton City Council","http://opendatacommunities.org/id/metropolitan-district-council/wolverhampton","710664","NonStop Recruitment LTD","135517","1,131.00","Agency Staff","130185926","08/09/2017","Child Protection","CIN/CP Social Work Unit - Area 1","R1100"
"Wolverhampton City Council","http://opendatacommunities.org/id/metropolitan-district-council/wolverhampton","710664","NonStop Recruitment LTD","135517","-1,131.00","Agency Staff","130185926","08/09/2017","Child Protection","CIN/CP Social Work Unit - Area 1","R1100"
"Wolverhampton City Council","http://opendatacommunities.org/id/metropolitan-district-council/wolverhampton","710664","NonStop Recruitment LTD","135517","1,312.50","Agency Staff","130185926","08/09/2017","Child Protection","CIN/CP Social Work Unit - Area 1","R1100"
"Wolverhampton City Council","http://opendatacommunities.org/id/metropolitan-district-council/wolverhampton","710664","NonStop Recruitment LTD","135391","783.00","Agency Staff","130185924","08/09/2017","Child Protection","CIN/CP Social Work Unit - Area 1","R1100"
"Wolverhampton City Council","http://opendatacommunities.org/id/metropolitan-district-council/wolverhampton","710664","NonStop Recruitment LTD","135391","-783.00","Agency Staff","130185924","08/09/2017","Child Protection","CIN/CP Social Work Unit - Area 1","R1100"
"Wolverhampton City Council","http://opendatacommunities.org/id/metropolitan-district-council/wolverhampton","710664","NonStop Recruitment LTD","135391","787.50","Agency Staff","130185924","08/09/2017","Child Protection","CIN/CP Social Work Unit - Area 1","R1100"
"Wolverhampton City Council","http://opendatacommunities.org/id/metropolitan-district-council/wolverhampton","710664","NonStop Recruitment LTD","135226","1,044.00","Agency Staff","130185923","08/09/2017","Child Protection","CIN/CP Social Work Unit - Area 1","R1100"
"Wolverhampton City Council","http://opendatacommunities.org/id/metropolitan-district-council/wolverhampton","710664","NonStop Recruitment LTD","135226","-1,044.00","Agency Staff","130185923","08/09/2017","Child Protection","CIN/CP Social Work Unit - Area 1","R1100"
"Wolverhampton City Council","http://opendatacommunities.org/id/metropolitan-district-council/wolverhampton","710664","NonStop Recruitment LTD","135226","1,050.00","Agency Staff","130185923","08/09/2017","Child Protection","CIN/CP Social Work Unit - Area 1","R1100"
"Wolverhampton City Council","http://opendatacommunities.org/id/metropolitan-district-council/wolverhampton","710664","NonStop Recruitment LTD","137451","-1,102.00","Agency Staff","130185944","08/09/2017","Child Protection","CIN/CP Social Work Unit - Area 1","R1100"
"Wolverhampton City Council","http://opendatacommunities.org/id/metropolitan-district-council/wolverhampton","710664","NonStop Recruitment LTD","137451","1,295.00","Agency Staff","130185944","08/09/2017","Child Protection","CIN/CP Social Work Unit - Area 1","R1100"
"Wolverhampton City Council","http://opendatacommunities.org/id/metropolitan-district-council/wolverhampton","710664","NonStop Recruitment LTD","135041","13.50","Agency Staff","130167988","08/09/2017","Child Protection","CIN/CP Social Work Unit - Area 1","R1100"
"Wolverhampton City Council","http://opendatacommunities.org/id/metropolitan-district-council/wolverhampton","710664","NonStop Recruitment LTD","139041","1,295.00","Agency Staff","130185958","15/09/2017","Child Protection","CIN/CP Social Work Unit - Area 5","R1100"
"Wolverhampton City Council","http://opendatacommunities.org/id/metropolitan-district-council/wolverhampton","710664","NonStop Recruitment LTD","139042","39.15","Agency Staff","130185959","15/09/2017","Child Protection","CIN/CP Social Work Unit - Area 5","R1100"
"Wolverhampton City Council","http://opendatacommunities.org/id/metropolitan-district-council/wolverhampton","710710","Dinos Building Limited (Adaptations)","15/0299/DFG/b","1,000.00","Grants paid out","190372718","13/09/2017","-","Disabled Facilities Grants","C5000"
"Wolverhampton City Council","http://opendatacommunities.org/id/metropolitan-district-council/wolverhampton","710710","Dinos Building Limited (Adaptations)","16/0091/DFG","2,765.00","Grants paid out","190372714","13/09/2017","-","Disabled Facilities Grants","C5000"
"Wolverhampton City Council","http://opendatacommunities.org/id/metropolitan-district-council/wolverhampton","710735","ARCHITYPE LIMITED","00006527","22,400.00","Services - Professional Fees","130188389","15/09/2017","Housing","Wholly Owned Company - Operations","R4400"
"Wolverhampton City Council","http://opendatacommunities.org/id/metropolitan-district-council/wolverhampton","710745","Medequip Assistive Technology Ltd","40420","120.00","Equipment - R & M","130183964","01/09/2017","Maintenance Programme","Asset Management Team","R4003"
"Wolverhampton City Council","http://opendatacommunities.org/id/metropolitan-district-council/wolverhampton","710776","JPL Print & Design Ltd","INV54533","320.00","Printing","130189737","27/09/2017","ICTS","Document Centre - General","R4300"
"Wolverhampton City Council","http://opendatacommunities.org/id/metropolitan-district-council/wolverhampton","710780","Wilson & Scott (Highways) LTD","25526","1,460.07","Construction and Conversion","130187184","27/09/2017","-","Integrated Transport","C1100"
"Wolverhampton City Council","http://opendatacommunities.org/id/metropolitan-district-council/wolverhampton","710780","Wilson & Scott (Highways) LTD","25292","296.50","Construction and Conversion","130182158","01/09/2017","-","Integrated Transport","C1100"
"Wolverhampton City Council","http://opendatacommunities.org/id/metropolitan-district-council/wolverhampton","710786","St Judes C of E Primary Academy","St Judes CE Academy Early Years Payment Autumn Interim 2017/18","17,810.54","Grant Payments","190374381","20/09/2017","Schools","Academy Early years","R4700"
"Wolverhampton City Council","http://opendatacommunities.org/id/metropolitan-district-council/wolverhampton","710786","St Judes C of E Primary Academy","St Judes CE Academy Early Years Payment Summer Final 2017/18","18,864.13","Grant Payments","190374380","20/09/2017","Schools","Academy Early years","R4700"
"Wolverhampton City Council","http://opendatacommunities.org/id/metropolitan-district-council/wolverhampton","710786","St Judes C of E Primary Academy","TFT Autumn 2017 Inst 1","10,563.84","Grant Payments","190378735","29/09/2017","Early Years","Early Years Entitlement Funding for Disadvantaged 2 Year Olds","R4700"
"Wolverhampton City Council","http://opendatacommunities.org/id/metropolitan-district-council/wolverhampton","710795","The Dudley Group NHS Foundation Trust","2000005118","316.00","TPP - Public Health Contracts","130188579","20/09/2017","Contracts","Sexual Health","R5060"
"Wolverhampton City Council","http://opendatacommunities.org/id/metropolitan-district-council/wolverhampton","710796","IR James Associates LTD","3189","2,610.00","Equipment - Purchase","130185086","06/09/2017","Cleaning","Cleaning of Buildings - General","R4000"
"Wolverhampton City Council","http://opendatacommunities.org/id/metropolitan-district-council/wolverhampton","710796","IR James Associates LTD","3189","1,140.00","Equipment - Purchase","130185086","06/09/2017","Cleaning","Cleaning of Buildings - General","R4000"
"Wolverhampton City Council","http://opendatacommunities.org/id/metropolitan-district-council/wolverhampton","710796","IR James Associates LTD","3189","96.00","Equipment - Purchase","130185086","06/09/2017","Cleaning","Cleaning of Buildings - General","R4000"
"Wolverhampton City Council","http://opendatacommunities.org/id/metropolitan-district-council/wolverhampton","710796","IR James Associates LTD","3190","330.00","Equipment - Purchase","130185087","06/09/2017","Cleaning","Cleaning of Buildings - General","R4000"
"Wolverhampton City Council","http://opendatacommunities.org/id/metropolitan-district-council/wolverhampton","710799","Chelsea & Westminster Hospitals","N0011467 M12 2016/17 Estimate","267.65","TPP - Public Health Contracts","190375609","22/09/2017","Contracts","Sexual Health","R5060"
"Wolverhampton City Council","http://opendatacommunities.org/id/metropolitan-district-council/wolverhampton","710799","Chelsea & Westminster Hospitals","N0011179 M11 2016/17 Estimate","267.65","TPP - Public Health Contracts","190375607","22/09/2017","Contracts","Sexual Health","R5060"
"Wolverhampton City Council","http://opendatacommunities.org/id/metropolitan-district-council/wolverhampton","710799","Chelsea & Westminster Hospitals","N0015756 M03 2017","169.51","TPP - Public Health Contracts","190371724","13/09/2017","Contracts","Sexual Health","R5060"
"Wolverhampton City Council","http://opendatacommunities.org/id/metropolitan-district-council/wolverhampton","710799","Chelsea & Westminster Hospitals","C0001803 M11 2016/17","-98.14","TPP - Public Health Contracts","190375608","22/09/2017","Contracts","Sexual Health","R5060"
"Wolverhampton City Council","http://opendatacommunities.org/id/metropolitan-district-council/wolverhampton","710799","Chelsea & Westminster Hospitals","N0013521 M12 2016/17","175.88","TPP - Public Health Contracts","190375610","22/09/2017","Contracts","Sexual Health","R5060"
"Wolverhampton City Council","http://opendatacommunities.org/id/metropolitan-district-council/wolverhampton","710814","Oak Meadow Primary School","18/09/2017","126.00","TPP - Child Care provided for client","130189154","27/09/2017","Adult Education","Discretionary Fund","R5034"
"Wolverhampton City Council","http://opendatacommunities.org/id/metropolitan-district-council/wolverhampton","710814","Oak Meadow Primary School","26/05/2017","90.00","TPP - Child Care provided for client","130188871","27/09/2017","Adult Education","Discretionary Fund","R5034"
"Wolverhampton City Council","http://opendatacommunities.org/id/metropolitan-district-council/wolverhampton","710814","Oak Meadow Primary School","07/04/2017","162.00","TPP - Child Care provided for client","130189029","27/09/2017","Adult Education","Discretionary Fund","R5034"
"Wolverhampton City Council","http://opendatacommunities.org/id/metropolitan-district-council/wolverhampton","710828","Andrew Page","061401879","29.34","Equipment - Purchase","190370164","06/09/2017","Fleet Services","Fleet Management","R4000"
"Wolverhampton City Council","http://opendatacommunities.org/id/metropolitan-district-council/wolverhampton","710828","Andrew Page","061402355","55.81","Equipment - Purchase","190375426","22/09/2017","Fleet Services","Fleet Management","R4000"
"Wolverhampton City Council","http://opendatacommunities.org/id/metropolitan-district-council/wolverhampton","710828","Andrew Page","G064374.2","-5.94","Equipment - Purchase","190375468","22/09/2017","Fleet Services","Fleet Management","R4000"
"Wolverhampton City Council","http://opendatacommunities.org/id/metropolitan-district-council/wolverhampton","710828","Andrew Page","G064374.2","-95.00","Equipment - Purchase","190375468","22/09/2017","Fleet Services","Fleet Management","R4000"
"Wolverhampton City Council","http://opendatacommunities.org/id/metropolitan-district-council/wolverhampton","710828","Andrew Page","061402671","22.84","Equipment - Purchase","190375428","22/09/2017","Fleet Services","Fleet Management","R4000"
"Wolverhampton City Council","http://opendatacommunities.org/id/metropolitan-district-council/wolverhampton","710828","Andrew Page","G074968","-5.94","Equipment - Purchase","190375471","22/09/2017","Fleet Services","Fleet Management","R4000"
"Wolverhampton City Council","http://opendatacommunities.org/id/metropolitan-district-council/wolverhampton","710828","Andrew Page","G064374.1","-15.50","Equipment - Purchase","190375467","22/09/2017","Fleet Services","Fleet Management","R4000"
"Wolverhampton City Council","http://opendatacommunities.org/id/metropolitan-district-council/wolverhampton","710828","Andrew Page","061402671","20.56","Equipment - Purchase","190375428","22/09/2017","Fleet Services","Fleet Management","R4000"
"Wolverhampton City Council","http://opendatacommunities.org/id/metropolitan-district-council/wolverhampton","710828","Andrew Page","061405451","4.25","Equipment - Purchase","190372592","13/09/2017","Fleet Services","Fleet Management","R4000"
"Wolverhampton City Council","http://opendatacommunities.org/id/metropolitan-district-council/wolverhampton","710828","Andrew Page","061405451","2.92","Equipment - Purchase","190372592","13/09/2017","Fleet Services","Fleet Management","R4000"
"Wolverhampton City Council","http://opendatacommunities.org/id/metropolitan-district-council/wolverhampton","710828","Andrew Page","061405451","5.80","Equipment - Purchase","190372592","13/09/2017","Fleet Services","Fleet Management","R4000"
"Wolverhampton City Council","http://opendatacommunities.org/id/metropolitan-district-council/wolverhampton","710828","Andrew Page","061400855","13.72","Equipment - Purchase","190372568","13/09/2017","Fleet Services","Fleet Management","R4000"
"Wolverhampton City Council","http://opendatacommunities.org/id/metropolitan-district-council/wolverhampton","710828","Andrew Page","061400855","13.25","Equipment - Purchase","190372568","13/09/2017","Fleet Services","Fleet Management","R4000"
"Wolverhampton City Council","http://opendatacommunities.org/id/metropolitan-district-council/wolverhampton","710828","Andrew Page","061404066","2.92","Equipment - Purchase","190372575","13/09/2017","Fleet Services","Fleet Management","R4000"
"Wolverhampton City Council","http://opendatacommunities.org/id/metropolitan-district-council/wolverhampton","710828","Andrew Page","061404066","8.18","Equipment - Purchase","190372575","13/09/2017","Fleet Services","Fleet Management","R4000"
"Wolverhampton City Council","http://opendatacommunities.org/id/metropolitan-district-council/wolverhampton","710828","Andrew Page","061404066","8.91","Equipment - Purchase","190372575","13/09/2017","Fleet Services","Fleet Management","R4000"
"Wolverhampton City Council","http://opendatacommunities.org/id/metropolitan-district-council/wolverhampton","710828","Andrew Page","061404078","11.88","Equipment - Purchase","190372576","13/09/2017","Fleet Services","Fleet Management","R4000"
"Wolverhampton City Council","http://opendatacommunities.org/id/metropolitan-district-council/wolverhampton","710828","Andrew Page","061404082","22.31","Equipment - Purchase","190372577","13/09/2017","Fleet Services","Fleet Management","R4000"
"Wolverhampton City Council","http://opendatacommunities.org/id/metropolitan-district-council/wolverhampton","710828","Andrew Page","061404337","20.00","Equipment - Purchase","190372582","13/09/2017","Fleet Services","Fleet Management","R4000"
"Wolverhampton City Council","http://opendatacommunities.org/id/metropolitan-district-council/wolverhampton","710828","Andrew Page","061404337","100.00","Equipment - Purchase","190372582","13/09/2017","Fleet Services","Fleet Management","R4000"
"Wolverhampton City Council","http://opendatacommunities.org/id/metropolitan-district-council/wolverhampton","710828","Andrew Page","061404540","2.44","Equipment - Purchase","190372589","13/09/2017","Fleet Services","Fleet Management","R4000"
"Wolverhampton City Council","http://opendatacommunities.org/id/metropolitan-district-council/wolverhampton","710828","Andrew Page","061404540","25.68","Equipment - Purchase","190372589","13/09/2017","Fleet Services","Fleet Management","R4000"
"Wolverhampton City Council","http://opendatacommunities.org/id/metropolitan-district-council/wolverhampton","710828","Andrew Page","061404540","51.90","Equipment - Purchase","190372589","13/09/2017","Fleet Services","Fleet Management","R4000"
"Wolverhampton City Council","http://opendatacommunities.org/id/metropolitan-district-council/wolverhampton","710828","Andrew Page","061405451","4.80","Equipment - Purchase","190372592","13/09/2017","Fleet Services","Fleet Management","R4000"
"Wolverhampton City Council","http://opendatacommunities.org/id/metropolitan-district-council/wolverhampton","710828","Andrew Page","061407319","38.32","Equipment - Purchase","190378066","27/09/2017","Fleet Services","Fleet Management","R4000"
"Wolverhampton City Council","http://opendatacommunities.org/id/metropolitan-district-council/wolverhampton","710828","Andrew Page","061407581","5.12","Equipment - Purchase","190378068","27/09/2017","Fleet Services","Fleet Management","R4000"
"Wolverhampton City Council","http://opendatacommunities.org/id/metropolitan-district-council/wolverhampton","710828","Andrew Page","061407581","49.50","Equipment - Purchase","190378068","27/09/2017","Fleet Services","Fleet Management","R4000"
"Wolverhampton City Council","http://opendatacommunities.org/id/metropolitan-district-council/wolverhampton","710828","Andrew Page","061406246","36.11","Equipment - Purchase","190374284","20/09/2017","Fleet Services","Fleet Management","R4000"
"Wolverhampton City Council","http://opendatacommunities.org/id/metropolitan-district-council/wolverhampton","710828","Andrew Page","061404032","4.01","Equipment - Purchase","190372574","13/09/2017","Fleet Services","Fleet Management","R4000"
"Wolverhampton City Council","http://opendatacommunities.org/id/metropolitan-district-council/wolverhampton","710828","Andrew Page","061404032","14.36","Equipment - Purchase","190372574","13/09/2017","Fleet Services","Fleet Management","R4000"
"Wolverhampton City Council","http://opendatacommunities.org/id/metropolitan-district-council/wolverhampton","710828","Andrew Page","061404032","5.11","Equipment - Purchase","190372574","13/09/2017","Fleet Services","Fleet Management","R4000"
"Wolverhampton City Council","http://opendatacommunities.org/id/metropolitan-district-council/wolverhampton","710828","Andrew Page","061404032","8.57","Equipment - Purchase","190372574","13/09/2017","Fleet Services","Fleet Management","R4000"
"Wolverhampton City Council","http://opendatacommunities.org/id/metropolitan-district-council/wolverhampton","710828","Andrew Page","061401985","14.00","Equipment - Purchase","190370165","06/09/2017","Fleet Services","Fleet Management","R4000"
"Wolverhampton City Council","http://opendatacommunities.org/id/metropolitan-district-council/wolverhampton","710828","Andrew Page","061401985","14.00","Equipment - Purchase","190370165","06/09/2017","Fleet Services","Fleet Management","R4000"
"Wolverhampton City Council","http://opendatacommunities.org/id/metropolitan-district-council/wolverhampton","710828","Andrew Page","061404504","4.22","Equipment - Purchase","190375431","22/09/2017","Fleet Services","Fleet Management","R4000"
"Wolverhampton City Council","http://opendatacommunities.org/id/metropolitan-district-council/wolverhampton","710828","Andrew Page","061408271","64.38","Equipment - Purchase","190375435","22/09/2017","Fleet Services","Fleet Management","R4000"
"Wolverhampton City Council","http://opendatacommunities.org/id/metropolitan-district-council/wolverhampton","710828","Andrew Page","061408277","11.97","Equipment - Purchase","190375437","22/09/2017","Fleet Services","Fleet Management","R4000"
"Wolverhampton City Council","http://opendatacommunities.org/id/metropolitan-district-council/wolverhampton","710828","Andrew Page","061402600","71.34","Equipment - Purchase","190375427","22/09/2017","Fleet Services","Fleet Management","R4000"
"Wolverhampton City Council","http://opendatacommunities.org/id/metropolitan-district-council/wolverhampton","710828","Andrew Page","G064374","-36.11","Equipment - Purchase","190375466","22/09/2017","Fleet Services","Fleet Management","R4000"
"Wolverhampton City Council","http://opendatacommunities.org/id/metropolitan-district-council/wolverhampton","710828","Andrew Page","G074853","-71.34","Equipment - Purchase","190375470","22/09/2017","Fleet Services","Fleet Management","R4000"
"Wolverhampton City Council","http://opendatacommunities.org/id/metropolitan-district-council/wolverhampton","710828","Andrew Page","G074853","-21.68","Equipment - Purchase","190375470","22/09/2017","Fleet Services","Fleet Management","R4000"
"Wolverhampton City Council","http://opendatacommunities.org/id/metropolitan-district-council/wolverhampton","710828","Andrew Page","061405787","12.10","Equipment - Purchase","190372595","13/09/2017","Fleet Services","Fleet Management","R4000"
"Wolverhampton City Council","http://opendatacommunities.org/id/metropolitan-district-council/wolverhampton","710828","Andrew Page","061405787","12.93","Equipment - Purchase","190372595","13/09/2017","Fleet Services","Fleet Management","R4000"
"Wolverhampton City Council","http://opendatacommunities.org/id/metropolitan-district-council/wolverhampton","710828","Andrew Page","061405548","10.73","Equipment - Purchase","190372594","13/09/2017","Fleet Services","Fleet Management","R4000"
"Wolverhampton City Council","http://opendatacommunities.org/id/metropolitan-district-council/wolverhampton","710828","Andrew Page","061405548","6.82","Equipment - Purchase","190372594","13/09/2017","Fleet Services","Fleet Management","R4000"
"Wolverhampton City Council","http://opendatacommunities.org/id/metropolitan-district-council/wolverhampton","710828","Andrew Page","061400920","23.15","Equipment - Purchase","190372569","13/09/2017","Fleet Services","Fleet Management","R4000"
"Wolverhampton City Council","http://opendatacommunities.org/id/metropolitan-district-council/wolverhampton","710828","Andrew Page","061402588","69.17","Equipment - Purchase","190372570","13/09/2017","Fleet Services","Fleet Management","R4000"
"Wolverhampton City Council","http://opendatacommunities.org/id/metropolitan-district-council/wolverhampton","710828","Andrew Page","061404088","95.00","Equipment - Purchase","190372578","13/09/2017","Fleet Services","Fleet Management","R4000"
"Wolverhampton City Council","http://opendatacommunities.org/id/metropolitan-district-council/wolverhampton","710828","Andrew Page","061404088","190.52","Equipment - Purchase","190372578","13/09/2017","Fleet Services","Fleet Management","R4000"
"Wolverhampton City Council","http://opendatacommunities.org/id/metropolitan-district-council/wolverhampton","710828","Andrew Page","061404343","10.32","Equipment - Purchase","190372585","13/09/2017","Fleet Services","Fleet Management","R4000"
"Wolverhampton City Council","http://opendatacommunities.org/id/metropolitan-district-council/wolverhampton","710828","Andrew Page","061402691","61.30","Equipment - Purchase","190372572","13/09/2017","Fleet Services","Fleet Management","R4000"
"Wolverhampton City Council","http://opendatacommunities.org/id/metropolitan-district-council/wolverhampton","710828","Andrew Page","061405338","11.94","Equipment - Purchase","190372591","13/09/2017","Fleet Services","Fleet Management","R4000"
"Wolverhampton City Council","http://opendatacommunities.org/id/metropolitan-district-council/wolverhampton","710828","Andrew Page","061407036","172.59","Equipment - Purchase","190378065","27/09/2017","Fleet Services","Fleet Management","R4000"
"Wolverhampton City Council","http://opendatacommunities.org/id/metropolitan-district-council/wolverhampton","710828","Andrew Page","061404240","33.64","Equipment - Purchase","190374282","20/09/2017","Fleet Services","Fleet Management","R4000"
"Wolverhampton City Council","http://opendatacommunities.org/id/metropolitan-district-council/wolverhampton","710828","Andrew Page","061404240","69.17","Equipment - Purchase","190374282","20/09/2017","Fleet Services","Fleet Management","R4000"
"Wolverhampton City Council","http://opendatacommunities.org/id/metropolitan-district-council/wolverhampton","710828","Andrew Page","061406580","67.73","Equipment - Purchase","190372596","13/09/2017","Fleet Services","Fleet Management","R4000"
"Wolverhampton City Council","http://opendatacommunities.org/id/metropolitan-district-council/wolverhampton","710828","Andrew Page","061403571","50.00","Equipment - Purchase","190370166","06/09/2017","Fleet Services","Fleet Management","R4000"
"Wolverhampton City Council","http://opendatacommunities.org/id/metropolitan-district-council/wolverhampton","710828","Andrew Page","061403571","136.26","Equipment - Purchase","190370166","06/09/2017","Fleet Services","Fleet Management","R4000"
"Wolverhampton City Council","http://opendatacommunities.org/id/metropolitan-district-council/wolverhampton","710828","Andrew Page","061404490","4.99","Equipment - Purchase","190375430","22/09/2017","Fleet Services","Fleet Management","R4000"
"Wolverhampton City Council","http://opendatacommunities.org/id/metropolitan-district-council/wolverhampton","710828","Andrew Page","061407858","15.16","Equipment - Purchase","190375432","22/09/2017","Fleet Services","Fleet Management","R4000"
"Wolverhampton City Council","http://opendatacommunities.org/id/metropolitan-district-council/wolverhampton","710828","Andrew Page","061407858","8.04","Equipment - Purchase","190375432","22/09/2017","Fleet Services","Fleet Management","R4000"
"Wolverhampton City Council","http://opendatacommunities.org/id/metropolitan-district-council/wolverhampton","710828","Andrew Page","061407858","4.71","Equipment - Purchase","190375432","22/09/2017","Fleet Services","Fleet Management","R4000"
"Wolverhampton City Council","http://opendatacommunities.org/id/metropolitan-district-council/wolverhampton","710828","Andrew Page","061402330","10.84","Equipment - Purchase","190375425","22/09/2017","Fleet Services","Fleet Management","R4000"
"Wolverhampton City Council","http://opendatacommunities.org/id/metropolitan-district-council/wolverhampton","710828","Andrew Page","061402330","10.84","Equipment - Purchase","190375425","22/09/2017","Fleet Services","Fleet Management","R4000"
"Wolverhampton City Council","http://opendatacommunities.org/id/metropolitan-district-council/wolverhampton","710828","Andrew Page","061408272","54.66","Equipment - Purchase","190375436","22/09/2017","Fleet Services","Fleet Management","R4000"
"Wolverhampton City Council","http://opendatacommunities.org/id/metropolitan-district-council/wolverhampton","710828","Andrew Page","G075783","-17.20","Equipment - Purchase","190375473","22/09/2017","Fleet Services","Fleet Management","R4000"
"Wolverhampton City Council","http://opendatacommunities.org/id/metropolitan-district-council/wolverhampton","710828","Andrew Page","061405455","5.66","Equipment - Purchase","190372593","13/09/2017","Fleet Services","Fleet Management","R4000"
"Wolverhampton City Council","http://opendatacommunities.org/id/metropolitan-district-council/wolverhampton","710828","Andrew Page","061407018","74.33","Equipment - Purchase","190372599","13/09/2017","Fleet Services","Fleet Management","R4000"
"Wolverhampton City Council","http://opendatacommunities.org/id/metropolitan-district-council/wolverhampton","710828","Andrew Page","061406778","21.32","Equipment - Purchase","190372597","13/09/2017","Fleet Services","Fleet Management","R4000"
"Wolverhampton City Council","http://opendatacommunities.org/id/metropolitan-district-council/wolverhampton","710828","Andrew Page","061402596","10.85","Equipment - Purchase","190372571","13/09/2017","Fleet Services","Fleet Management","R4000"
"Wolverhampton City Council","http://opendatacommunities.org/id/metropolitan-district-council/wolverhampton","710828","Andrew Page","061402596","5.05","Equipment - Purchase","190372571","13/09/2017","Fleet Services","Fleet Management","R4000"
"Wolverhampton City Council","http://opendatacommunities.org/id/metropolitan-district-council/wolverhampton","710828","Andrew Page","061404220","22.31","Equipment - Purchase","190372580","13/09/2017","Fleet Services","Fleet Management","R4000"
"Wolverhampton City Council","http://opendatacommunities.org/id/metropolitan-district-council/wolverhampton","710828","Andrew Page","061404325","13.73","Equipment - Purchase","190372581","13/09/2017","Fleet Services","Fleet Management","R4000"
"Wolverhampton City Council","http://opendatacommunities.org/id/metropolitan-district-council/wolverhampton","710828","Andrew Page","061404339","20.00","Equipment - Purchase","190372583","13/09/2017","Fleet Services","Fleet Management","R4000"
"Wolverhampton City Council","http://opendatacommunities.org/id/metropolitan-district-council/wolverhampton","710828","Andrew Page","061404339","100.00","Equipment - Purchase","190372583","13/09/2017","Fleet Services","Fleet Management","R4000"
"Wolverhampton City Council","http://opendatacommunities.org/id/metropolitan-district-council/wolverhampton","710828","Andrew Page","061402596","23.51","Equipment - Purchase","190372571","13/09/2017","Fleet Services","Fleet Management","R4000"
"Wolverhampton City Council","http://opendatacommunities.org/id/metropolitan-district-council/wolverhampton","710828","Andrew Page","061402596","61.30","Equipment - Purchase","190372571","13/09/2017","Fleet Services","Fleet Management","R4000"
"Wolverhampton City Council","http://opendatacommunities.org/id/metropolitan-district-council/wolverhampton","710828","Andrew Page","061407031","27.00","Equipment - Purchase","190378063","27/09/2017","Fleet Services","Fleet Management","R4000"
"Wolverhampton City Council","http://opendatacommunities.org/id/metropolitan-district-council/wolverhampton","710828","Andrew Page","061407335","90.00","Equipment - Purchase","190378067","27/09/2017","Fleet Services","Fleet Management","R4000"
"Wolverhampton City Council","http://opendatacommunities.org/id/metropolitan-district-council/wolverhampton","710828","Andrew Page","G064363","-5.80","Equipment - Purchase","190372681","13/09/2017","Fleet Services","Fleet Management","R4000"
"Wolverhampton City Council","http://opendatacommunities.org/id/metropolitan-district-council/wolverhampton","710828","Andrew Page","061404243","16.02","Equipment - Purchase","190374283","20/09/2017","Fleet Services","Fleet Management","R4000"
"Wolverhampton City Council","http://opendatacommunities.org/id/metropolitan-district-council/wolverhampton","710828","Andrew Page","G074777","-50.00","Equipment - Purchase","190370221","06/09/2017","Fleet Services","Fleet Management","R4000"
"Wolverhampton City Council","http://opendatacommunities.org/id/metropolitan-district-council/wolverhampton","710828","Andrew Page","061408270","64.38","Equipment - Purchase","190375434","22/09/2017","Fleet Services","Fleet Management","R4000"
"Wolverhampton City Council","http://opendatacommunities.org/id/metropolitan-district-council/wolverhampton","710828","Andrew Page","061407906","14.70","Equipment - Purchase","190375433","22/09/2017","Fleet Services","Fleet Management","R4000"
"Wolverhampton City Council","http://opendatacommunities.org/id/metropolitan-district-council/wolverhampton","710828","Andrew Page","G075546","-29.34","Equipment - Purchase","190375472","22/09/2017","Fleet Services","Fleet Management","R4000"
"Wolverhampton City Council","http://opendatacommunities.org/id/metropolitan-district-council/wolverhampton","710828","Andrew Page","G064374.3","-40.00","Equipment - Purchase","190375469","22/09/2017","Fleet Services","Fleet Management","R4000"
"Wolverhampton City Council","http://opendatacommunities.org/id/metropolitan-district-council/wolverhampton","710828","Andrew Page","061402818","68.30","Equipment - Purchase","190375429","22/09/2017","Fleet Services","Fleet Management","R4000"
"Wolverhampton City Council","http://opendatacommunities.org/id/metropolitan-district-council/wolverhampton","710828","Andrew Page","061407004","14.64","Equipment - Purchase","190372598","13/09/2017","Fleet Services","Fleet Management","R4000"
"Wolverhampton City Council","http://opendatacommunities.org/id/metropolitan-district-council/wolverhampton","710828","Andrew Page","G74920","-14.36","Equipment - Purchase","190372682","13/09/2017","Fleet Services","Fleet Management","R4000"
"Wolverhampton City Council","http://opendatacommunities.org/id/metropolitan-district-council/wolverhampton","710828","Andrew Page","061404090","59.45","Equipment - Purchase","190372579","13/09/2017","Fleet Services","Fleet Management","R4000"
"Wolverhampton City Council","http://opendatacommunities.org/id/metropolitan-district-council/wolverhampton","710828","Andrew Page","061404342","10.32","Equipment - Purchase","190372584","13/09/2017","Fleet Services","Fleet Management","R4000"
"Wolverhampton City Council","http://opendatacommunities.org/id/metropolitan-district-council/wolverhampton","710828","Andrew Page","061404344","21.68","Equipment - Purchase","190372586","13/09/2017","Fleet Services","Fleet Management","R4000"
"Wolverhampton City Council","http://opendatacommunities.org/id/metropolitan-district-council/wolverhampton","710828","Andrew Page","061403618","0.77","Equipment - Purchase","190372573","13/09/2017","Fleet Services","Fleet Management","R4000"
"Wolverhampton City Council","http://opendatacommunities.org/id/metropolitan-district-council/wolverhampton","710828","Andrew Page","061403618","6.10","Equipment - Purchase","190372573","13/09/2017","Fleet Services","Fleet Management","R4000"
"Wolverhampton City Council","http://opendatacommunities.org/id/metropolitan-district-council/wolverhampton","710828","Andrew Page","061403618","36.13","Equipment - Purchase","190372573","13/09/2017","Fleet Services","Fleet Management","R4000"
"Wolverhampton City Council","http://opendatacommunities.org/id/metropolitan-district-council/wolverhampton","710828","Andrew Page","061404720","27.54","Equipment - Purchase","190372590","13/09/2017","Fleet Services","Fleet Management","R4000"
"Wolverhampton City Council","http://opendatacommunities.org/id/metropolitan-district-council/wolverhampton","710828","Andrew Page","061407034","22.80","Equipment - Purchase","190378064","27/09/2017","Fleet Services","Fleet Management","R4000"
"Wolverhampton City Council","http://opendatacommunities.org/id/metropolitan-district-council/wolverhampton","710828","Andrew Page","061405914","11.38","Equipment - Purchase","190378062","27/09/2017","Fleet Services","Fleet Management","R4000"
"Wolverhampton City Council","http://opendatacommunities.org/id/metropolitan-district-council/wolverhampton","710828","Andrew Page","061404225","9.00","Equipment - Purchase","190374281","20/09/2017","Fleet Services","Fleet Management","R4000"
"Wolverhampton City Council","http://opendatacommunities.org/id/metropolitan-district-council/wolverhampton","710828","Andrew Page","061404225","225.00","Equipment - Purchase","190374281","20/09/2017","Fleet Services","Fleet Management","R4000"
"Wolverhampton City Council","http://opendatacommunities.org/id/metropolitan-district-council/wolverhampton","710828","Andrew Page","061404345","17.12","Equipment - Purchase","190372587","13/09/2017","Fleet Services","Fleet Management","R4000"
"Wolverhampton City Council","http://opendatacommunities.org/id/metropolitan-district-council/wolverhampton","710828","Andrew Page","061404345","29.15","Equipment - Purchase","190372587","13/09/2017","Fleet Services","Fleet Management","R4000"
"Wolverhampton City Council","http://opendatacommunities.org/id/metropolitan-district-council/wolverhampton","710828","Andrew Page","061404345","17.86","Equipment - Purchase","190372587","13/09/2017","Fleet Services","Fleet Management","R4000"
"Wolverhampton City Council","http://opendatacommunities.org/id/metropolitan-district-council/wolverhampton","710828","Andrew Page","061404493","3.25","Equipment - Purchase","190372588","13/09/2017","Fleet Services","Fleet Management","R4000"
"Wolverhampton City Council","http://opendatacommunities.org/id/metropolitan-district-council/wolverhampton","710828","Andrew Page","061405523","2.92","Equipment - Purchase","190372976","15/09/2017","Fleet Services","Fleet Management","R4000"
"Wolverhampton City Council","http://opendatacommunities.org/id/metropolitan-district-council/wolverhampton","710828","Andrew Page","061405523","8.91","Equipment - Purchase","190372976","15/09/2017","Fleet Services","Fleet Management","R4000"
"Wolverhampton City Council","http://opendatacommunities.org/id/metropolitan-district-council/wolverhampton","710828","Andrew Page","061405523","11.68","Equipment - Purchase","190372976","15/09/2017","Fleet Services","Fleet Management","R4000"
"Wolverhampton City Council","http://opendatacommunities.org/id/metropolitan-district-council/wolverhampton","710873","Little Rascals Childcare LTD","NEF Autumn 2017 INST 1","10,852.29","TPP - Private Nursery Education Funding","190378725","29/09/2017","Early Years","Early Years Universal Entitlement for 3 and 4 Year Olds","R5035"
"Wolverhampton City Council","http://opendatacommunities.org/id/metropolitan-district-council/wolverhampton","710873","Little Rascals Childcare LTD","TFT Autumn 2017 Inst 1","15,110.06","Grant Payments","190378735","29/09/2017","Early Years","Early Years Entitlement Funding for Disadvantaged 2 Year Olds","R4700"
"Wolverhampton City Council","http://opendatacommunities.org/id/metropolitan-district-council/wolverhampton","710875","St Michaels Pre School","NEF Autumn 2017 INST 1","6,949.35","TPP - Private Nursery Education Funding","190378725","29/09/2017","Early Years","Early Years Universal Entitlement for 3 and 4 Year Olds","R5035"
"Wolverhampton City Council","http://opendatacommunities.org/id/metropolitan-district-council/wolverhampton","710875","St Michaels Pre School","TFT Autumn 2017 Inst 1","6,067.92","Grant Payments","190378735","29/09/2017","Early Years","Early Years Entitlement Funding for Disadvantaged 2 Year Olds","R4700"
"Wolverhampton City Council","http://opendatacommunities.org/id/metropolitan-district-council/wolverhampton","710879","Kingswood Trust","258","162.00","Training Expenses","130188391","27/09/2017","Audit Services","Health & Safety","R1650"
"Wolverhampton City Council","http://opendatacommunities.org/id/metropolitan-district-council/wolverhampton","710890","Condair PLC","SINV093961","519.14","R&M - Departmental planned (internal)","130187603","27/09/2017","Maintenance Programme","Centralised R&M","R2000"
"Wolverhampton City Council","http://opendatacommunities.org/id/metropolitan-district-council/wolverhampton","710894","Kathleen Fabre","185","200.00","Services - Professional Fees","130186805","29/09/2017","Visitor Economy","Art Galleries - Schools Art SLA Service","R4400"
"Wolverhampton City Council","http://opendatacommunities.org/id/metropolitan-district-council/wolverhampton","710894","Kathleen Fabre","186","225.00","Services - Professional Fees","130186806","29/09/2017","Visitor Economy","Art Galleries - Schools Art SLA Service","R4400"
"Wolverhampton City Council","http://opendatacommunities.org/id/metropolitan-district-council/wolverhampton","710894","Kathleen Fabre","184","125.00","Services - Professional Fees","130186804","29/09/2017","Visitor Economy","Art Galleries - Schools Art SLA Service","R4400"
"Wolverhampton City Council","http://opendatacommunities.org/id/metropolitan-district-council/wolverhampton","710917","George Eliot Hospital NHS Trust","M0112481 M04 2017/18","139.30","TPP - Public Health Contracts","190375604","22/09/2017","Contracts","Sexual Health","R5060"
"Wolverhampton City Council","http://opendatacommunities.org/id/metropolitan-district-council/wolverhampton","710919","Johnson Cleaners","6086/1007171215","10.57","Contract Cleaning","130186647","01/09/2017","Bereavement Services","Crematorium","R2700"
"Wolverhampton City Council","http://opendatacommunities.org/id/metropolitan-district-council/wolverhampton","710927","R N Williams & Co Solicitors","TR/JJ/O/026301","75.00","Services - Professional Fees","130189607","27/09/2017","Housing Revenue Account","HRA General","R4400"
"Wolverhampton City Council","http://opendatacommunities.org/id/metropolitan-district-council/wolverhampton","710928","Yoo Recruit LTD","I0760","10,120.00","Agency Staff","130187606","29/09/2017","Digital Transformation Programme","Digital Transformation Programme","R1100"
"Wolverhampton City Council","http://opendatacommunities.org/id/metropolitan-district-council/wolverhampton","710928","Yoo Recruit LTD","CWC1004346","1,780.00","Agency Staff","190374752","20/09/2017","Public Protection","Regulatory Services - Works in Default","R1100"
"Wolverhampton City Council","http://opendatacommunities.org/id/metropolitan-district-council/wolverhampton","710928","Yoo Recruit LTD","06766","3,155.56","Agency Staff","130176193","29/09/2017","Cleaning","Cleaning of Buildings - General","R1100"
"Wolverhampton City Council","http://opendatacommunities.org/id/metropolitan-district-council/wolverhampton","710928","Yoo Recruit LTD","C0363","-296.27","Agency Staff","130188874","29/09/2017","Cleaning","Cleaning of Buildings - General","R1100"
"Wolverhampton City Council","http://opendatacommunities.org/id/metropolitan-district-council/wolverhampton","710928","Yoo Recruit LTD","08024","2,019.09","Agency Staff","130186384","06/09/2017","Leisure Services","Central Baths","R1100"
"Wolverhampton City Council","http://opendatacommunities.org/id/metropolitan-district-council/wolverhampton","710928","Yoo Recruit LTD","07981","773.11","Agency Staff","130185770","06/09/2017","Specialist Support","Upper Pendeford Farm Short Breaks Centre","R1100"
"Wolverhampton City Council","http://opendatacommunities.org/id/metropolitan-district-council/wolverhampton","710928","Yoo Recruit LTD","08033","415.14","Agency Staff","130186392","06/09/2017","Specialist Support","Families In Focus","R1100"
"Wolverhampton City Council","http://opendatacommunities.org/id/metropolitan-district-council/wolverhampton","710928","Yoo Recruit LTD","L2942","657.76","Agency Staff","130184763","06/09/2017","Mental Health Assesment & Care Management","Mental Health Assessment & Care Management","R1100"
"Wolverhampton City Council","http://opendatacommunities.org/id/metropolitan-district-council/wolverhampton","710928","Yoo Recruit LTD","08004","1,448.92","Agency Staff","130186368","06/09/2017","Youth Offending","Youth Offending Team","R1100"
"Wolverhampton City Council","http://opendatacommunities.org/id/metropolitan-district-council/wolverhampton","710928","Yoo Recruit LTD","08068","551.67","Agency Staff","130186425","06/09/2017","Learning Disability Provider","Ernest Bold Court","R1100"
"Wolverhampton City Council","http://opendatacommunities.org/id/metropolitan-district-council/wolverhampton","710928","Yoo Recruit LTD","07011","449.10","Agency Staff","130186822","06/09/2017","Adult Education","Creative Studies Delivery Area","R1100"
"Wolverhampton City Council","http://opendatacommunities.org/id/metropolitan-district-council/wolverhampton","710928","Yoo Recruit LTD","08065","613.83","Agency Staff","130186932","06/09/2017","Looked After Children","Pupil Premium","R1100"
"Wolverhampton City Council","http://opendatacommunities.org/id/metropolitan-district-council/wolverhampton","710928","Yoo Recruit LTD","08075","188.70","Agency Staff","130186933","06/09/2017","Looked After Children","Fostering Team & Allowances","R1100"
"Wolverhampton City Council","http://opendatacommunities.org/id/metropolitan-district-council/wolverhampton","710928","Yoo Recruit LTD","07598","148.32","Agency Staff","130186834","06/09/2017","Adult Education","Learner Services","R1100"
"Wolverhampton City Council","http://opendatacommunities.org/id/metropolitan-district-council/wolverhampton","710928","Yoo Recruit LTD","08025","586.48","Agency Staff","130186524","01/09/2017","Leisure Services","Aldersley Leisure Village","R1100"
"Wolverhampton City Council","http://opendatacommunities.org/id/metropolitan-district-council/wolverhampton","710928","Yoo Recruit LTD","08025","-586.48","Agency Staff","130186524","01/09/2017","Leisure Services","Aldersley Leisure Village","R1100"
"Wolverhampton City Council","http://opendatacommunities.org/id/metropolitan-district-council/wolverhampton","710928","Yoo Recruit LTD","08025","567.67","Agency Staff","130186524","01/09/2017","Leisure Services","Aldersley Leisure Village","R1100"
"Wolverhampton City Council","http://opendatacommunities.org/id/metropolitan-district-council/wolverhampton","710928","Yoo Recruit LTD","08048","470.25","Agency Staff","130186406","01/09/2017","Licensing","Licensing - Private Hire Vehicles","R1100"
"Wolverhampton City Council","http://opendatacommunities.org/id/metropolitan-district-council/wolverhampton","710928","Yoo Recruit LTD","08082","342.30","Agency Staff","130186439","01/09/2017","School Planning & Resources","Technical Support","R1100"
"Wolverhampton City Council","http://opendatacommunities.org/id/metropolitan-district-council/wolverhampton","710928","Yoo Recruit LTD","08097","503.20","Agency Staff","130186454","01/09/2017","Licensing","Licensing - Private Hire Vehicles","R1100"
"Wolverhampton City Council","http://opendatacommunities.org/id/metropolitan-district-council/wolverhampton","710928","Yoo Recruit LTD","07744","478.04","Agency Staff","130183751","01/09/2017","Customer Services","City Direct","R1100"
"Wolverhampton City Council","http://opendatacommunities.org/id/metropolitan-district-council/wolverhampton","710928","Yoo Recruit LTD","07733","616.42","Agency Staff","130183740","01/09/2017","Customer Services","City Direct","R1100"
"Wolverhampton City Council","http://opendatacommunities.org/id/metropolitan-district-council/wolverhampton","710928","Yoo Recruit LTD","07689","289.34","Agency Staff","130183700","01/09/2017","Customer Services","City Direct","R1100"
"Wolverhampton City Council","http://opendatacommunities.org/id/metropolitan-district-council/wolverhampton","710928","Yoo Recruit LTD","08076","465.46","Agency Staff","130186433","01/09/2017","Revenues & Benefits","Debt Management","R1100"
"Wolverhampton City Council","http://opendatacommunities.org/id/metropolitan-district-council/wolverhampton","710928","Yoo Recruit LTD","CAP1100","733.47","Agency Staff","130185295","01/09/2017","Adults Assessment & Care Management East","Adult Services � East","R1100"
"Wolverhampton City Council","http://opendatacommunities.org/id/metropolitan-district-council/wolverhampton","710928","Yoo Recruit LTD","C0350","-239.52","Agency Staff","130181101","01/09/2017","Adult Education","Creative Studies Delivery Area","R1100"
"Wolverhampton City Council","http://opendatacommunities.org/id/metropolitan-district-council/wolverhampton","710928","Yoo Recruit LTD","07827","930.92","Agency Staff","130184470","01/09/2017","Safeguarding","Safeguarding & Quality Administration","R1100"
"Wolverhampton City Council","http://opendatacommunities.org/id/metropolitan-district-council/wolverhampton","710928","Yoo Recruit LTD","08099","433.69","Agency Staff","130186455","01/09/2017","Legal Services","Legal Services","R1100"
"Wolverhampton City Council","http://opendatacommunities.org/id/metropolitan-district-council/wolverhampton","710928","Yoo Recruit LTD","08007","1,184.92","Agency Staff","130186521","01/09/2017","Strategic Director Place","Business Manager - Place","R1100"
"Wolverhampton City Council","http://opendatacommunities.org/id/metropolitan-district-council/wolverhampton","710928","Yoo Recruit LTD","06888","503.20","Agency Staff","130177436","27/09/2017","Leisure Services","WV Active Business Support","R1100"
"Wolverhampton City Council","http://opendatacommunities.org/id/metropolitan-district-council/wolverhampton","710928","Yoo Recruit LTD","CAP0500","647.35","Agency Staff","130155637","27/09/2017","Looked After Children","Adoption and Residence Team & Allowances","R1100"
"Wolverhampton City Council","http://opendatacommunities.org/id/metropolitan-district-council/wolverhampton","710928","Yoo Recruit LTD","L2925","1,303.94","Agency Staff","130188593","27/09/2017","Child Protection","CIN/CP Social Work Unit - Area 1","R1100"
"Wolverhampton City Council","http://opendatacommunities.org/id/metropolitan-district-council/wolverhampton","710928","Yoo Recruit LTD","CWC100475","4,137.41","Agency Staff","190376869","27/09/2017","Youth Offending","Youth Offending Team","R1100"
"Wolverhampton City Council","http://opendatacommunities.org/id/metropolitan-district-council/wolverhampton","710928","Yoo Recruit LTD","CWC100472","678.10","Agency Staff","190376866","27/09/2017","Looked After Children","LAC Education Team (LACE)","R1100"
"Wolverhampton City Council","http://opendatacommunities.org/id/metropolitan-district-council/wolverhampton","710928","Yoo Recruit LTD","08103","103.80","Agency Staff","130186527","27/09/2017","Leisure Services","Bert Williams Leisure Centre","R1100"
"Wolverhampton City Council","http://opendatacommunities.org/id/metropolitan-district-council/wolverhampton","710928","Yoo Recruit LTD","CWC1004751","233.60","Agency Staff","190376914","27/09/2017","Adult Education","Language Studies Delivery Area","R1100"
"Wolverhampton City Council","http://opendatacommunities.org/id/metropolitan-district-council/wolverhampton","710928","Yoo Recruit LTD","CWC1004761","916.30","Agency Staff","190376924","27/09/2017","Visitor Economy","Civic Halls Non-Direct Event Management Account","R1100"
"Wolverhampton City Council","http://opendatacommunities.org/id/metropolitan-district-council/wolverhampton","710928","Yoo Recruit LTD","CWC1004743","1,617.97","Agency Staff","190376906","27/09/2017","Legal Services","Legal Services","R1100"
"Wolverhampton City Council","http://opendatacommunities.org/id/metropolitan-district-council/wolverhampton","710928","Yoo Recruit LTD","CWC1004741","459.17","Agency Staff","190376904","27/09/2017","Democratic Services","Electoral Registration","R1100"
"Wolverhampton City Council","http://opendatacommunities.org/id/metropolitan-district-council/wolverhampton","710928","Yoo Recruit LTD","CWC1004721","474.75","Agency Staff","190376884","27/09/2017","Business Continuity & Emergency Planning","Business Continuity & Emergency Planning","R1100"
"Wolverhampton City Council","http://opendatacommunities.org/id/metropolitan-district-council/wolverhampton","710928","Yoo Recruit LTD","CWC1004732","6,592.50","Agency Staff","190376895","27/09/2017","Corporate Business Support","Corporate Programmes","R1100"
"Wolverhampton City Council","http://opendatacommunities.org/id/metropolitan-district-council/wolverhampton","710928","Yoo Recruit LTD","CWC1004731","1,432.64","Agency Staff","190376894","27/09/2017","ICTS","Strategic ICTS","R1100"
"Wolverhampton City Council","http://opendatacommunities.org/id/metropolitan-district-council/wolverhampton","710928","Yoo Recruit LTD","CWC1004717","3,488.52","Agency Staff","190376880","27/09/2017","Leisure Services","Finance & Admin.","R1100"
"Wolverhampton City Council","http://opendatacommunities.org/id/metropolitan-district-council/wolverhampton","710928","Yoo Recruit LTD","CWC1004757","2,620.03","Agency Staff","190376920","27/09/2017","Corporate Communications","Communications & Marketing - General","R1100"
"Wolverhampton City Council","http://opendatacommunities.org/id/metropolitan-district-council/wolverhampton","710928","Yoo Recruit LTD","L2814","1,217.02","Agency Staff","130176071","18/09/2017","Adults Assessment & Care Management West","Assessment Team (West)","R1100"
"Wolverhampton City Council","http://opendatacommunities.org/id/metropolitan-district-council/wolverhampton","710928","Yoo Recruit LTD","CAP0921","1,003.12","Agency Staff","130177767","18/09/2017","Adults Assessment & Care Management West","Assessment Team (West)","R1100"
"Wolverhampton City Council","http://opendatacommunities.org/id/metropolitan-district-council/wolverhampton","710928","Yoo Recruit LTD","L2926","1,480.34","Agency Staff","130188594","18/09/2017","Emergency Duty Team","Emergency Duty Team","R1100"
"Wolverhampton City Council","http://opendatacommunities.org/id/metropolitan-district-council/wolverhampton","710928","Yoo Recruit LTD","CAP1130","783.92","Agency Staff","130188233","22/09/2017","Adults Assessment & Care Management East","Adult Services � East","R1100"
"Wolverhampton City Council","http://opendatacommunities.org/id/metropolitan-district-council/wolverhampton","710928","Yoo Recruit LTD","C0353","-247.00","Agency Staff","130184734","22/09/2017","Emergency Duty Team","Emergency Duty Team","R1100"
"Wolverhampton City Council","http://opendatacommunities.org/id/metropolitan-district-council/wolverhampton","710928","Yoo Recruit LTD","CAP1115","1,208.55","Agency Staff","130188218","22/09/2017","Adults Assessment & Care Management East","Adult Services � East","R1100"
"Wolverhampton City Council","http://opendatacommunities.org/id/metropolitan-district-council/wolverhampton","710928","Yoo Recruit LTD","L2992","3,396.00","Agency Staff","130189314","27/09/2017","Looked After Children","Looked After Team 1","R1100"
"Wolverhampton City Council","http://opendatacommunities.org/id/metropolitan-district-council/wolverhampton","710928","Yoo Recruit LTD","07786","541.45","Agency Staff","130184724","27/09/2017","Visitor Economy","Front of House","R1100"
"Wolverhampton City Council","http://opendatacommunities.org/id/metropolitan-district-council/wolverhampton","710928","Yoo Recruit LTD","CAP1138","2,125.16","Agency Staff","130189458","27/09/2017","Child Protection","Childrens with Disabilities Team","R1100"
"Wolverhampton City Council","http://opendatacommunities.org/id/metropolitan-district-council/wolverhampton","710928","Yoo Recruit LTD","I0729","8,740.00","Agency Staff","130184739","27/09/2017","Corporate Business Support","Corporate Programmes","R1100"
"Wolverhampton City Council","http://opendatacommunities.org/id/metropolitan-district-council/wolverhampton","710928","Yoo Recruit LTD","CAP1141","1,208.55","Agency Staff","130189461","27/09/2017","Adults Assessment & Care Management East","Adult Services � East","R1100"
"Wolverhampton City Council","http://opendatacommunities.org/id/metropolitan-district-council/wolverhampton","710928","Yoo Recruit LTD","CWC1004742","279.60","Agency Staff","190376905","27/09/2017","Democratic Services","Local Government Elections","R1100"
"Wolverhampton City Council","http://opendatacommunities.org/id/metropolitan-district-council/wolverhampton","710928","Yoo Recruit LTD","CWC1004766","2,822.47","Agency Staff","190376929","27/09/2017","Leisure Services","WV Active Business Support","R1100"
"Wolverhampton City Council","http://opendatacommunities.org/id/metropolitan-district-council/wolverhampton","710928","Yoo Recruit LTD","CWC1004716","2,944.55","Agency Staff","190376879","27/09/2017","Leisure Services","Central Baths","R1100"
"Wolverhampton City Council","http://opendatacommunities.org/id/metropolitan-district-council/wolverhampton","710928","Yoo Recruit LTD","08146","722.93","Agency Staff","130187947","13/09/2017","Learning Disability Provider","Duke Street Bungalows","R1100"
"Wolverhampton City Council","http://opendatacommunities.org/id/metropolitan-district-council/wolverhampton","710928","Yoo Recruit LTD","08042","819.12","Agency Staff","130186400","13/09/2017","Corporate Communications","Communications & Marketing - General","R1100"
"Wolverhampton City Council","http://opendatacommunities.org/id/metropolitan-district-council/wolverhampton","710928","Yoo Recruit LTD","08113","1,028.56","Agency Staff","130187331","13/09/2017","Markets","Wolverhampton Indoor and Open Market","R1100"
"Wolverhampton City Council","http://opendatacommunities.org/id/metropolitan-district-council/wolverhampton","710928","Yoo Recruit LTD","CAP1050","5,482.73","Agency Staff","130183338","13/09/2017","Looked After Children","Adoption and Residence Team & Allowances","R1100"
"Wolverhampton City Council","http://opendatacommunities.org/id/metropolitan-district-council/wolverhampton","710928","Yoo Recruit LTD","I0752","2,415.00","Agency Staff","130187365","13/09/2017","Looked After Children","Adoption and Residence Team & Allowances","R1100"
"Wolverhampton City Council","http://opendatacommunities.org/id/metropolitan-district-council/wolverhampton","710928","Yoo Recruit LTD","08138","377.40","Agency Staff","130187356","13/09/2017","School Planning & Resources","Technical Support","R1100"
"Wolverhampton City Council","http://opendatacommunities.org/id/metropolitan-district-council/wolverhampton","710928","Yoo Recruit LTD","08122","55.90","Agency Staff","130187340","13/09/2017","Visitor Economy","Art Gallery Tea Room","R1100"
"Wolverhampton City Council","http://opendatacommunities.org/id/metropolitan-district-council/wolverhampton","710928","Yoo Recruit LTD","08135","44.72","Agency Staff","130187353","13/09/2017","Markets","Wednesfield Street Market","R1100"
"Wolverhampton City Council","http://opendatacommunities.org/id/metropolitan-district-council/wolverhampton","710928","Yoo Recruit LTD","08118","465.46","Agency Staff","130187336","13/09/2017","Human Resources","HR Advice","R1100"
"Wolverhampton City Council","http://opendatacommunities.org/id/metropolitan-district-council/wolverhampton","710928","Yoo Recruit LTD","08121","571.28","Agency Staff","130187339","13/09/2017","Governance Services","Scrutiny","R1100"
"Wolverhampton City Council","http://opendatacommunities.org/id/metropolitan-district-council/wolverhampton","710928","Yoo Recruit LTD","CAP1096","647.35","Agency Staff","130185291","13/09/2017","Adults Assessment & Care Management North","Assessment Team (North)","R1100"
"Wolverhampton City Council","http://opendatacommunities.org/id/metropolitan-district-council/wolverhampton","710928","Yoo Recruit LTD","08046","506.47","Agency Staff","130186404","13/09/2017","Commercial Services","Corporate Procurement Unit","R1100"
"Wolverhampton City Council","http://opendatacommunities.org/id/metropolitan-district-council/wolverhampton","710928","Yoo Recruit LTD","07463","270.47","Agency Staff","130181638","13/09/2017","Leisure Services","WV Active Business Support","R1100"
"Wolverhampton City Council","http://opendatacommunities.org/id/metropolitan-district-council/wolverhampton","710928","Yoo Recruit LTD","CAP1057","647.35","Agency Staff","130183345","13/09/2017","Adults Assessment & Care Management North","Assessment Team (North)","R1100"
"Wolverhampton City Council","http://opendatacommunities.org/id/metropolitan-district-council/wolverhampton","710928","Yoo Recruit LTD","L2889","1,230.16","Agency Staff","130181264","13/09/2017","Adults Assessment & Care Management North","Assessment Team (North)","R1100"
"Wolverhampton City Council","http://opendatacommunities.org/id/metropolitan-district-council/wolverhampton","710928","Yoo Recruit LTD","08054","587.62","Agency Staff","130186412","20/09/2017","Leisure Services","Central Baths","R1100"
"Wolverhampton City Council","http://opendatacommunities.org/id/metropolitan-district-council/wolverhampton","710928","Yoo Recruit LTD","L2969","1,620.93","Agency Staff","130188711","20/09/2017","Looked After Children","LAC Transitions Team","R1100"
"Wolverhampton City Council","http://opendatacommunities.org/id/metropolitan-district-council/wolverhampton","710928","Yoo Recruit LTD","C0362","-95.03","Agency Staff","130188873","20/09/2017","Cleaning","Cleaning of Buildings - General","R1100"
"Wolverhampton City Council","http://opendatacommunities.org/id/metropolitan-district-council/wolverhampton","710928","Yoo Recruit LTD","CWC1004339","941.50","Agency Staff","190374745","20/09/2017","Housing","Housing Regeneration - Strategy & Development","R1100"
"Wolverhampton City Council","http://opendatacommunities.org/id/metropolitan-district-council/wolverhampton","710928","Yoo Recruit LTD","CWC1004327","767.32","Agency Staff","190374733","20/09/2017","Environmental Maintenance","Ground Maintenance Overheads","R1100"
"Wolverhampton City Council","http://opendatacommunities.org/id/metropolitan-district-council/wolverhampton","710928","Yoo Recruit LTD","CWC1004322","1,085.12","Agency Staff","190374728","20/09/2017","Cleaning","Cleaning of Buildings - General","R1100"
"Wolverhampton City Council","http://opendatacommunities.org/id/metropolitan-district-council/wolverhampton","710928","Yoo Recruit LTD","CWC1004347","1,437.08","Agency Staff","190374753","20/09/2017","Safeguarding","Safeguarding & Quality Administration","R1100"
"Wolverhampton City Council","http://opendatacommunities.org/id/metropolitan-district-council/wolverhampton","710928","Yoo Recruit LTD","CWC1004317","1,402.45","Agency Staff","190374723","20/09/2017","Safeguarding","MCA General","R1100"
"Wolverhampton City Council","http://opendatacommunities.org/id/metropolitan-district-council/wolverhampton","710928","Yoo Recruit LTD","CWC1003817","6,741.62","Agency Staff","190374678","20/09/2017","Customer Services","City Direct","R1100"
"Wolverhampton City Council","http://opendatacommunities.org/id/metropolitan-district-council/wolverhampton","710928","Yoo Recruit LTD","CWC1004356","2,733.84","Agency Staff","190374762","20/09/2017","Housing Revenue Account","Young Person�s Supp Hsg Project","R1100"
"Wolverhampton City Council","http://opendatacommunities.org/id/metropolitan-district-council/wolverhampton","710928","Yoo Recruit LTD","CWC100385","189.72","Agency Staff","190374669","20/09/2017","Learning Disability Provider","Support Plus","R1100"
"Wolverhampton City Council","http://opendatacommunities.org/id/metropolitan-district-council/wolverhampton","710928","Yoo Recruit LTD","CWC100389","1,136.41","Agency Staff","190374673","20/09/2017","Leisure Services","Aldersley Leisure Village","R1100"
"Wolverhampton City Council","http://opendatacommunities.org/id/metropolitan-district-council/wolverhampton","710928","Yoo Recruit LTD","CWC1003822","316.68","Agency Staff","190374683","20/09/2017","Fleet Services","Fleet Management","R1100"
"Wolverhampton City Council","http://opendatacommunities.org/id/metropolitan-district-council/wolverhampton","710928","Yoo Recruit LTD","CWC100388","611.67","Agency Staff","190374672","20/09/2017","Strategic Organisation Development","Global Budgets","R1100"
"Wolverhampton City Council","http://opendatacommunities.org/id/metropolitan-district-council/wolverhampton","710928","Yoo Recruit LTD","CWC1003833","923.89","Agency Staff","190374694","20/09/2017","Adult Education","Admin & Support","R1100"
"Wolverhampton City Council","http://opendatacommunities.org/id/metropolitan-district-council/wolverhampton","710928","Yoo Recruit LTD","CAP1127","1,717.33","Agency Staff","130188230","20/09/2017","Looked After Children","LAC Transitions Team","R1100"
"Wolverhampton City Council","http://opendatacommunities.org/id/metropolitan-district-council/wolverhampton","710928","Yoo Recruit LTD","CWC100432","214.35","Agency Staff","190374709","20/09/2017","Specialist Support","Upper Pendeford Farm Short Breaks Centre","R1100"
"Wolverhampton City Council","http://opendatacommunities.org/id/metropolitan-district-council/wolverhampton","710928","Yoo Recruit LTD","CWC1004349","472.62","Agency Staff","190374755","20/09/2017","Visitor Economy","Civic Halls Non-Direct Event Management Account","R1100"
"Wolverhampton City Council","http://opendatacommunities.org/id/metropolitan-district-council/wolverhampton","710928","Yoo Recruit LTD","CWC1004350","704.80","Agency Staff","190374756","20/09/2017","Learning Disability Provider","City Links","R1100"
"Wolverhampton City Council","http://opendatacommunities.org/id/metropolitan-district-council/wolverhampton","710928","Yoo Recruit LTD","CWC100384","448.03","Agency Staff","190374668","20/09/2017","Independent Living Service","Telecare","R1100"
"Wolverhampton City Council","http://opendatacommunities.org/id/metropolitan-district-council/wolverhampton","710928","Yoo Recruit LTD","CWC1003819","890.52","Agency Staff","190374680","20/09/2017","Cleaning","External Cleaning","R1100"
"Wolverhampton City Council","http://opendatacommunities.org/id/metropolitan-district-council/wolverhampton","710928","Yoo Recruit LTD","CWC1003818","376.01","Agency Staff","190374679","20/09/2017","Cleaning","Cleaning of Buildings - General","R1100"
"Wolverhampton City Council","http://opendatacommunities.org/id/metropolitan-district-council/wolverhampton","710928","Yoo Recruit LTD","CWC1003839","1,202.32","Agency Staff","190374700","20/09/2017","Governance Services","Scrutiny","R1100"
"Wolverhampton City Council","http://opendatacommunities.org/id/metropolitan-district-council/wolverhampton","710928","Yoo Recruit LTD","L2982","822.41","Agency Staff","130188724","20/09/2017","Emergency Duty Team","Emergency Duty Team","R1100"
"Wolverhampton City Council","http://opendatacommunities.org/id/metropolitan-district-council/wolverhampton","710928","Yoo Recruit LTD","07268","3,242.20","Agency Staff","130180514","08/09/2017","Cleaning","Cleaning of Buildings - General","R1100"
"Wolverhampton City Council","http://opendatacommunities.org/id/metropolitan-district-council/wolverhampton","710928","Yoo Recruit LTD","07810","791.41","Agency Staff","130184455","08/09/2017","Housing Revenue Account","Spend to Save Fund","R1100"
"Wolverhampton City Council","http://opendatacommunities.org/id/metropolitan-district-council/wolverhampton","710928","Yoo Recruit LTD","07887","2,767.05","Agency Staff","130185678","08/09/2017","Visitor Economy","Bantock - Tea Rooms","R1100"
"Wolverhampton City Council","http://opendatacommunities.org/id/metropolitan-district-council/wolverhampton","710928","Yoo Recruit LTD","08120","493.77","Agency Staff","130187338","08/09/2017","Licensing","Licensing - Private Hire Vehicles","R1100"
"Wolverhampton City Council","http://opendatacommunities.org/id/metropolitan-district-council/wolverhampton","710928","Yoo Recruit LTD","07947","644.08","Agency Staff","130185736","08/09/2017","Legal Services","Legal Services","R1100"
"Wolverhampton City Council","http://opendatacommunities.org/id/metropolitan-district-council/wolverhampton","710928","Yoo Recruit LTD","07695","465.46","Agency Staff","130183706","20/09/2017","Customer Services","City Direct","R1100"
"Wolverhampton City Council","http://opendatacommunities.org/id/metropolitan-district-council/wolverhampton","710928","Yoo Recruit LTD","CWC1004354","672.53","Agency Staff","190374760","20/09/2017","Digital Transformation Programme","Digital Transformation Programme","R1100"
"Wolverhampton City Council","http://opendatacommunities.org/id/metropolitan-district-council/wolverhampton","710928","Yoo Recruit LTD","CWC1003840","3,018.06","Agency Staff","190374701","20/09/2017","Public Protection","Regulatory Services - Works in Default","R1100"
"Wolverhampton City Council","http://opendatacommunities.org/id/metropolitan-district-council/wolverhampton","710928","Yoo Recruit LTD","CWC1003827","3,459.79","Agency Staff","190374688","20/09/2017","Human Resources","HR Advice","R1100"
"Wolverhampton City Council","http://opendatacommunities.org/id/metropolitan-district-council/wolverhampton","710928","Yoo Recruit LTD","L2981","4,680.09","Agency Staff","130188723","20/09/2017","Emergency Duty Team","Emergency Duty Team","R1100"
"Wolverhampton City Council","http://opendatacommunities.org/id/metropolitan-district-council/wolverhampton","710928","Yoo Recruit LTD","L2988","3,914.18","Agency Staff","130188730","20/09/2017","Adults Assessment & Care Management North","Assessment Team (North)","R1100"
"Wolverhampton City Council","http://opendatacommunities.org/id/metropolitan-district-council/wolverhampton","710928","Yoo Recruit LTD","CWC1003835","176.32","Agency Staff","190374696","20/09/2017","Human Resources","Schools HR Consultants","R1100"
"Wolverhampton City Council","http://opendatacommunities.org/id/metropolitan-district-council/wolverhampton","710928","Yoo Recruit LTD","L2962","4,240.29","Agency Staff","130187611","13/09/2017","Looked After Children","Adoption and Residence Team & Allowances","R1100"
"Wolverhampton City Council","http://opendatacommunities.org/id/metropolitan-district-council/wolverhampton","710928","Yoo Recruit LTD","08116","844.34","Agency Staff","130187334","15/09/2017","Adult Education","Caretakers","R1100"
"Wolverhampton City Council","http://opendatacommunities.org/id/metropolitan-district-council/wolverhampton","710928","Yoo Recruit LTD","CAP1093","3,376.72","Agency Staff","130185288","15/09/2017","Adults Assessment & Care Management West","Promoting Independence Project Team","R1100"
"Wolverhampton City Council","http://opendatacommunities.org/id/metropolitan-district-council/wolverhampton","710928","Yoo Recruit LTD","CAP1107","1,049.76","Agency Staff","130188210","15/09/2017","Child Protection","Childrens with Disabilities Team","R1100"
"Wolverhampton City Council","http://opendatacommunities.org/id/metropolitan-district-council/wolverhampton","710928","Yoo Recruit LTD","CAP1124","1,612.58","Agency Staff","130188227","15/09/2017","Looked After Children","Looked After Team 1","R1100"
"Wolverhampton City Council","http://opendatacommunities.org/id/metropolitan-district-council/wolverhampton","710928","Yoo Recruit LTD","CAP1112","715.61","Agency Staff","130188215","15/09/2017","Adults Assessment & Care Management West","Adult Services � West","R1100"
"Wolverhampton City Council","http://opendatacommunities.org/id/metropolitan-district-council/wolverhampton","710928","Yoo Recruit LTD","L2960","1,303.94","Agency Staff","130187609","15/09/2017","Child Protection","CIN/CP Social Work Unit - Area 1","R1100"
"Wolverhampton City Council","http://opendatacommunities.org/id/metropolitan-district-council/wolverhampton","710928","Yoo Recruit LTD","08151","13,353.30","Agency Staff","130188585","29/09/2017","ICTS","Strategic ICTS","R1100"
"Wolverhampton City Council","http://opendatacommunities.org/id/metropolitan-district-council/wolverhampton","710928","Yoo Recruit LTD","C0364","-206.83","Agency Staff","130188875","29/09/2017","Cleaning","Cleaning of Buildings - General","R1100"
"Wolverhampton City Council","http://opendatacommunities.org/id/metropolitan-district-council/wolverhampton","710928","Yoo Recruit LTD","CWC1003837","1,781.43","Agency Staff","190374698","20/09/2017","School Planning & Resources","Learning Technologies","R1100"
"Wolverhampton City Council","http://opendatacommunities.org/id/metropolitan-district-council/wolverhampton","710928","Yoo Recruit LTD","08061","2,854.00","Agency Staff","130186526","06/09/2017","Housing Revenue Account","Hostels / Outreach","R1100"
"Wolverhampton City Council","http://opendatacommunities.org/id/metropolitan-district-council/wolverhampton","710928","Yoo Recruit LTD","07982","695.42","Agency Staff","130185771","06/09/2017","Learning Disability Provider","Ernest Bold Court","R1100"
"Wolverhampton City Council","http://opendatacommunities.org/id/metropolitan-district-council/wolverhampton","710928","Yoo Recruit LTD","CAP1065","733.47","Agency Staff","130185091","06/09/2017","Adults Assessment & Care Management East","Assessment Team (East)","R1100"
"Wolverhampton City Council","http://opendatacommunities.org/id/metropolitan-district-council/wolverhampton","710928","Yoo Recruit LTD","08003","930.92","Agency Staff","130186367","06/09/2017","Housing","Private Sector Housing","R1100"
"Wolverhampton City Council","http://opendatacommunities.org/id/metropolitan-district-council/wolverhampton","710928","Yoo Recruit LTD","08108","134.16","Agency Staff","130186463","06/09/2017","School Planning & Resources","Special - Transport","R1100"
"Wolverhampton City Council","http://opendatacommunities.org/id/metropolitan-district-council/wolverhampton","710928","Yoo Recruit LTD","08093","582.75","Agency Staff","130186934","06/09/2017","Specialist Support","Upper Pendeford Farm Short Breaks Centre","R1100"
